Workbook

Sheet Originál
C1: Vyučtovanie výčapu 2018 | O1: Denný sumár
G2: Meno: | N2: Juniorka | O2: Meno: | P2: =I2 -> 0
G3: Dátum: | J3: /2018 | N3: Šipulová | O3: Dátum: | P3: =I3 -> 0 | Q3: /2018
C13: Strana 1: | O13: Strana 1:
B14: P.Č. | C14: Názov tovaru | D14: Poč. stav | E14: Denný príjem | F14: Spolu | G14: Zostatok v sklade | I14: Denný predaj | J14: Cena € | K14: Suma celkom € | L14: J.M | O14: Nákupná cena | P14: Predajná cena | Q14: Tržba | R14: Zisk | S14: Zisk po zdanení | U14: Zostatok v krčme | V14: Suma tovaru
B16: 1. | C16: aaa | F16: =D16+E16 -> 0 | I16: =D16+E16-G16 -> 0 | J16: 2 | K16: =I16*J16 -> 0 | L16: l. | O16: 1.032 | P16: =J16 -> 2 | Q16: =I16*J16 -> 0 | R16: =(P16-O16)*I16 -> 0 | S16: =R16*0.8 -> 0 | U16: =G16 -> 0 | V16: =U16*O16 -> 0
B17: 2. | C17: sss | F17: 0 | I17: 0 | J17: 2 | K17: =I17*J17 -> 0 | L17: l. | O17: 0.493 | P17: =J17 -> 2 | Q17: =I17*J17 -> 0 | R17: =(P17-O17)*I17 -> 0 | S17: =R17*0.8 -> 0 | U17: =G17 -> 0 | V17: =U17*O17 -> 0
B18: 3. | C18: dddd | F18: 0 | I18: 0 | J18: 2.8 | K18: 0 | L18: l. | O18: 1.52 | P18: 2.8 | Q18: 0 | R18: =(P18-O18)*I18 -> 0 | S18: 0 | U18: 0 | V18: 0
B19: 4. | F19: 0 | I19: 0 | K19: 0 | P19: 0 | Q19: 0 | R19: 0 | S19: 0 | U19: 0 | V19: 0
B20: 5. | C20: ref | F20: 0 | I20: 0 | J20: 0.8 | K20: 0 | L20: ks. | O20: 0.41 | P20: 0.8 | Q20: 0 | R20: 0 | S20: 0 | U20: 0 | V20: 0
B21: 6. | C21: erfer | F21: 0 | I21: 0 | J21: 0.9 | K21: 0 | L21: ks. | O21: 0.47 | P21: 0.9 | Q21: 0 | R21: 0 | S21: 0 | U21: 0 | V21: 0
B22: 7. | C22: erferf | F22: 0 | I22: 0 | J22: 1.2 | K22: 0 | L22: ks. | O22: 0.64 | P22: 1.2 | Q22: 0 | R22: 0 | S22: 0 | U22: 0 | V22: 0
B23: 8. | C23: erferf | F23: 0 | I23: 0 | J23: 0.9 | K23: 0 | L23: ks. | O23: 0.49 | P23: 0.9 | Q23: 0 | R23: 0 | S23: 0 | U23: 0 | V23: 0
B24: 9. | C24: ergfer | F24: 0 | I24: 0 | J24: 1.3 | K24: 0 | L24: ks. | O24: 0.93 | P24: 1.3 | Q24: 0 | R24: 0 | S24: 0 | U24: 0 | V24: 0
B25: 10. | C25: rgerg | F25: 0 | I25: 0 | J25: 1 | K25: 0 | L25: ks. | O25: 0.77 | P25: 1 | Q25: 0 | R25: 0 | S25: 0 | U25: 0 | V25: 0
B26: 11. | C26: hzh | F26: 0 | I26: 0 | J26: 0.9 | K26: 0 | L26: ks. | O26: 0.49 | P26: 0.9 | Q26: 0 | R26: 0 | S26: 0 | U26: 0 | V26: 0
B27: 12. | C27: zthtz | F27: 0 | I27: 0 | J27: 1 | K27: 0 | L27: ks. | O27: 0.42 | P27: 1 | Q27: 0 | R27: 0 | S27: 0 | U27: 0 | V27: 0
B28: 13. | F28: 0 | I28: 0 | J28: 1.2 | K28: 0 | L28: ks. | O28: 0.75 | P28: 1.2 | Q28: 0 | R28: 0 | S28: 0 | U28: 0 | V28: 0
B29: 14. | F29: 0 | I29: 0 | K29: 0 | P29: 0 | Q29: 0 | R29: 0 | S29: 0 | U29: 0 | V29: 0
B30: 15. | F30: 0 | I30: 0 | J30: 3 | K30: 0 | L30: l. | O30: 1.29 | P30: 3 | Q30: 0 | R30: 0 | S30: 0 | U30: 0 | V30: 0
B31: 16. | F31: 0 | I31: 0 | J31: 3 | K31: 0 | L31: l. | O31: 1.29 | P31: 3 | Q31: 0 | R31: 0 | S31: 0 | U31: 0 | V31: 0
B32: 17. | F32: 0 | I32: 0 | K32: 0 | P32: 0 | Q32: 0 | R32: 0 | S32: 0 | U32: 0 | V32: 0
B33: 18. | F33: 0 | I33: 0 | J33: 12 | K33: 0 | L33: l. | O33: 6.35 | P33: 12 | Q33: 0 | R33: 0 | S33: 0 | U33: 0 | V33: 0
B34: 19. | F34: 0 | I34: 0 | J34: 12 | K34: 0 | L34: l. | O34: 6.35 | P34: 12 | Q34: 0 | R34: 0 | S34: 0 | U34: 0 | V34: 0
B35: 20. | F35: 0 | I35: 0 | J35: 14 | K35: 0 | L35: l. | O35: 5.83 | P35: 14 | Q35: 0 | R35: 0 | S35: 0 | U35: 0 | V35: 0
B36: 21. | F36: 0 | I36: 0 | J36: 12 | K36: 0 | L36: l. | O36: 5.78 | P36: 12 | Q36: 0 | R36: 0 | S36: 0 | U36: 0 | V36: 0
B37: 22. | F37: 0 | I37: 0 | J37: 14 | K37: 0 | L37: l. | O37: 7.1 | P37: 14 | Q37: 0 | R37: 0 | S37: 0 | U37: 0 | V37: 0
B38: 23. | F38: 0 | I38: 0 | J38: 14 | K38: 0 | L38: l. | O38: 5.74 | P38: 14 | Q38: 0 | R38: 0 | S38: 0 | U38: 0 | V38: 0
B39: 24. | F39: 0 | I39: 0 | J39: 12 | K39: 0 | L39: l. | O39: 6.17 | P39: 12 | Q39: 0 | R39: 0 | S39: 0 | U39: 0 | V39: 0
B40: 25. | F40: 0 | I40: 0 | J40: 12 | K40: 0 | L40: l. | O40: 4.92 | P40: 12 | Q40: 0 | R40: 0 | S40: 0 | U40: 0 | V40: 0
B41: 26. | F41: 0 | I41: 0 | J41: 14 | K41: 0 | L41: l. | O41: 4.38 | P41: 14 | Q41: 0 | R41: 0 | S41: 0 | U41: 0 | V41: 0
B42: 27. | F42: 0 | I42: 0 | J42: 20 | K42: 0 | L42: l. | O42: 10.8 | P42: 20 | Q42: 0 | R42: 0 | S42: 0 | U42: 0 | V42: 0
B43: 28. | F43: 0 | I43: 0 | J43: 20 | K43: 0 | L43: l. | O43: 9.69 | P43: 20 | Q43: 0 | R43: 0 | S43: 0 | U43: 0 | V43: 0
B44: 29. | F44: 0 | I44: 0 | J44: 14 | K44: 0 | L44: l. | O44: 7.15 | P44: 14 | Q44: 0 | R44: 0 | S44: 0 | U44: 0 | V44: 0
B45: 30. | F45: 0 | I45: 0 | J45: 24 | K45: 0 | L45: l. | O45: 16.91 | P45: 24 | Q45: 0 | R45: 0 | S45: 0 | U45: 0 | V45: 0
B46: 31. | F46: 0 | I46: 0 | J46: 20 | K46: 0 | L46: l. | O46: 5.998 | P46: 20 | Q46: 0 | R46: 0 | S46: 0 | U46: 0 | V46: 0
B47: 32. | F47: 0 | I47: 0 | J47: 20 | K47: 0 | L47: l. | O47: 9.69 | P47: 20 | Q47: 0 | R47: 0 | S47: 0 | U47: 0 | V47: 0
B48: 33. | F48: 0 | I48: 0 | J48: 12 | K48: 0 | L48: l. | O48: 5.08 | P48: 12 | Q48: 0 | R48: 0 | S48: 0 | U48: 0 | V48: 0
B49: 34. | F49: 0 | I49: 0 | J49: 18 | K49: 0 | L49: l. | O49: 4.9 | P49: 18 | Q49: 0 | R49: 0 | S49: 0 | U49: 0 | V49: 0
B50: 35. | F50: 0 | I50: 0 | J50: 24 | K50: 0 | L50: l. | O50: 11.45 | P50: 24 | Q50: 0 | R50: 0 | S50: 0 | U50: 0 | V50: 0
B51: 36. | F51: 0 | I51: 0 | K51: 0 | P51: 0 | Q51: 0 | R51: 0 | S51: 0 | U51: 0 | V51: 0
P52: 0
D53: =SUM(D16:D51) -> 0 | G53: =SUM(G16:G51) -> 0 | J53: Celkom: | K53: =SUM(K16:K51) -> 0 | P53: Celkom: | Q53: =SUM(Q16:Q51) -> 0 | R53: =SUM(R16:R51) -> 0 | S53: =SUM(S16:S51) -> 0 | U53: Za tovar: | V53: =SUM(V16:V51) -> 0
C58: Strana 2: | O58: Strana 2:
B59: P.Č. | C59: Názov tovaru | D59: Poč. stav | E59: Denný príjem | F59: Spolu | G59: Zostatok v sklade | I59: Denný predaj | J59: Cena € | K59: Suma celkom € | O59: Nákupná cena | P59: Predajná cena | Q59: Tržba | R59: Zisk | S59: Zisk po zdanení | U59: Zostatok v krčme | V59: Suma tovaru
B61: 37. | F61: =D61+E61 -> 0 | I61: =D61+E61-G61 -> 0 | J61: 1.1 | K61: =I61*J61 -> 0 | L61: ks. | O61: 0.78 | P61: =J61 -> 1.1 | Q61: =I61*J61 -> 0 | R61: =(P61-O61)*I61 -> 0 | S61: =R61*0.8 -> 0 | U61: =G61 -> 0 | V61: =U61*O61 -> 0
B62: 38. | F62: =D62+E62 -> 0 | I62: =D62+E62-G62 -> 0 | J62: 2 | K62: =I62*J62 -> 0 | L62: ks. | O62: 0.726 | P62: =J62 -> 2 | Q62: =I62*J62 -> 0 | R62: =(P62-O62)*I62 -> 0 | S62: =R62*0.8 -> 0 | U62: =G62 -> 0 | V62: =U62*O62 -> 0
B63: 39. | F63: 0 | I63: 0 | J63: 0.9 | K63: 0 | L63: ks. | O63: 0.528 | P63: 0.9 | Q63: 0 | R63: =(P63-O63)*I63 -> 0 | S63: 0 | U63: 0 | V63: 0
B64: 40. | F64: 0 | I64: 0 | J64: 1.1 | K64: 0 | L64: ks. | O64: 0.49 | P64: 1.1 | Q64: 0 | R64: 0 | S64: 0 | U64: 0 | V64: 0
B65: 41. | F65: 0 | I65: 0 | J65: 0.5 | K65: 0 | L65: ks. | O65: 0.2 | P65: 0.5 | Q65: 0 | R65: 0 | S65: 0 | U65: 0 | V65: 0
B66: 42. | F66: 0 | I66: 0 | J66: 1.8 | K66: 0 | L66: ks. | O66: 0.25 | P66: 1.8 | Q66: 0 | R66: 0 | S66: 0 | U66: 0 | V66: 0
B67: 43. | F67: 0 | I67: 0 | J67: 0.5 | K67: 0 | L67: ks. | O67: 0.11 | P67: 0.5 | Q67: 0 | R67: 0 | S67: 0 | U67: 0 | V67: 0
B68: 44. | D68: 0 | F68: 0 | G68: 0 | I68: 0 | J68: 1.5 | K68: 0 | L68: l. | O68: 0.23 | P68: 1.5 | Q68: 0 | R68: 0 | S68: 0 | U68: 0 | V68: 0
B69: 45. | F69: 0 | I69: 0 | J69: 1 | K69: 0 | L69: ks. | O69: 0.46 | P69: 1 | Q69: 0 | R69: 0 | S69: 0 | U69: 0 | V69: 0
B70: 46. | F70: 0 | I70: 0 | J70: 3 | K70: 0 | L70: ks. | O70: 1.188 | P70: 3 | Q70: 0 | R70: 0 | S70: 0 | U70: 0 | V70: 0
B71: 47. | F71: 0 | I71: 0 | J71: 1.1 | K71: 0 | L71: l. | O71: 0.33 | P71: 1.1 | Q71: 0 | R71: 0 | S71: 0 | U71: 0 | V71: 0
B72: 48. | F72: 0 | I72: 0 | J72: 0.8 | K72: 0 | L72: ks. | O72: 0.32 | P72: 0.8 | Q72: 0 | R72: 0 | S72: 0 | U72: 0 | V72: 0
B73: 49. | F73: 0 | I73: 0 | J73: 1.1 | K73: 0 | L73: ks. | O73: 0.624 | P73: 1.1 | Q73: 0 | R73: 0 | S73: 0 | U73: 0 | V73: 0
B74: 50. | F74: 0 | I74: 0 | J74: 1.1 | K74: 0 | L74: ks. | O74: 0.504 | P74: 1.1 | Q74: 0 | R74: 0 | S74: 0 | U74: 0 | V74: 0
B75: 51. | F75: 0 | I75: 0 | J75: 1.2 | K75: 0 | L75: ks. | O75: 0.64 | P75: 1.2 | Q75: 0 | R75: 0 | S75: 0 | U75: 0 | V75: 0
B76: 52. | F76: 0 | I76: 0 | K76: 0 | P76: 0 | Q76: 0 | R76: 0 | S76: 0 | U76: 0 | V76: 0
B77: 53. | F77: 0 | I77: =(D77+E77-G77)/7 -> 0 | J77: 0.5 | K77: 0 | L77: gr. | O77: 0.034 | P77: 0.5 | Q77: =K77 -> 0 | R77: 0 | S77: 0 | U77: 0 | V77: 0
B78: 54. | F78: 0 | I78: 0 | J78: 0.5 | K78: 0 | L78: ks. | O78: 0.14 | P78: 0.5 | Q78: 0 | R78: 0 | S78: 0 | U78: 0 | V78: 0
B79: 55. | F79: 0 | I79: 0 | J79: 0.5 | K79: =I79*J79 -> 0 | L79: ks. | O79: 0.058 | P79: 0.5 | Q79: =I79*J79 -> 0 | R79: 0 | S79: 0 | U79: 0 | V79: =U79*O80 -> 0
B80: 56. | F80: 0 | I80: 0 | J80: 0.1 | K80: =I80*J80 -> 0 | L80: ks. | O80: 0.036 | P80: 0.1 | Q80: =I80*J80 -> 0 | R80: 0 | S80: 0 | U80: 0 | V80: =U80*O81 -> 0
B81: 57. | F81: 0 | I81: 0 | J81: 0.05 | K81: =I81*J81 -> 0 | L81: ks. | O81: 0.08 | P81: 0.05 | Q81: =I81*J81 -> 0 | R81: 0 | S81: 0 | U81: 0 | V81: =U81*O82 -> 0
B82: 58. | F82: 0 | I82: 0 | K82: =I82*J82 -> 0 | P82: 0 | Q82: =I82*J82 -> 0 | R82: 0 | S82: 0 | U82: 0 | V82: =U82*O83 -> 0
B83: 59. | F83: 0 | I83: 0 | K83: 0 | P83: 0 | Q83: 0 | R83: =(P83-O83)*I83 -> 0 | S83: 0 | U83: 0 | V83: 0
B84: 60. | F84: 0 | I84: 0 | J84: 3.2 | K84: 0 | L84: ks. | O84: 3.04 | P84: 3.2 | Q84: 0 | R84: 0 | S84: 0 | U84: 0 | V84: 0
B85: 61. | F85: 0 | I85: 0 | J85: 3.3 | K85: 0 | L85: ks. | O85: 3.3 | P85: 3.3 | Q85: 0 | R85: 0 | S85: 0 | U85: 0 | V85: 0
B86: 62. | F86: 0 | I86: 0 | J86: 3.4 | K86: 0 | L86: ks. | O86: 3.32 | P86: 3.4 | Q86: 0 | R86: 0 | S86: 0 | U86: 0 | V86: 0
B87: 63. | F87: 0 | I87: 0 | J87: 3.6 | K87: 0 | L87: ks. | O87: 2.95 | P87: 3.6 | Q87: 0 | R87: 0 | S87: 0 | U87: 0 | V87: 0
B88: 64. | F88: 0 | I88: 0 | J88: 3.3 | K88: 0 | L88: ks. | O88: 3.04 | P88: 3.3 | Q88: 0 | R88: 0 | S88: 0 | U88: 0 | V88: 0
B89: 65. | F89: 0 | I89: 0 | J89: 3.2 | K89: 0 | L89: ks. | O89: 3.04 | P89: 3.2 | Q89: 0 | R89: 0 | S89: 0 | U89: 0 | V89: 0
B90: 66. | F90: 0 | I90: 0 | J90: 3.1 | K90: 0 | L90: ks. | O90: 2.94 | P90: 3.1 | Q90: 0 | R90: 0 | S90: 0 | U90: 0 | V90: 0
B91: 67. | F91: 0 | I91: 0 | J91: 3.2 | K91: 0 | L91: ks. | O91: 3.04 | P91: 3.2 | Q91: 0 | R91: 0 | S91: 0 | U91: 0 | V91: 0
B92: 68. | F92: 0 | I92: 0 | J92: 3.1 | K92: 0 | L92: ks. | P92: 3.1 | Q92: 0 | R92: 0 | S92: 0 | U92: 0 | V92: 0
B93: 69. | F93: 0 | I93: 0 | J93: 3.3 | K93: 0 | L93: ks. | P93: 3.3 | Q93: 0 | R93: 0 | S93: 0 | U93: 0 | V93: 0
B94: 70. | F94: 0 | I94: 0 | K94: 0 | P94: 0 | Q94: 0 | R94: 0 | S94: 0 | U94: 0 | V94: 0
B95: 71. | F95: 0 | I95: 0 | K95: 0 | P95: 0 | Q95: 0 | R95: 0 | S95: 0 | U95: 0 | V95: 0
B96: 72. | F96: 0 | I96: 0 | J96: 0.2 | K96: 0 | L96: ks. | O96: 0.089 | P96: 0.2 | Q96: 0 | R96: 0 | S96: 0 | U96: 0 | V96: 0
B97: 73. | F97: 0 | I97: 0 | J97: 0.5 | K97: 0 | L97: ks. | O97: 0.17 | P97: 0.5 | Q97: 0 | R97: 0 | S97: 0 | U97: 0 | V97: 0
B98: 74. | F98: 0 | I98: 0 | J98: 0.1 | K98: 0 | L98: ks. | O98: 0.04 | P98: 0.1 | Q98: 0 | R98: 0 | S98: 0 | U98: 0 | V98: 0
B99: 75. | F99: 0 | I99: 0 | K99: 0 | P99: 0 | Q99: 0 | R99: 0 | S99: 0 | U99: 0 | V99: 0
B100: 76. | F100: 0 | I100: 0 | K100: 0 | P100: 0 | Q100: 0 | R100: 0 | S100: 0 | U100: 0 | V100: 0
B101: 77. | F101: 0 | I101: 0 | K101: 0 | P101: 0 | Q101: 0 | R101: 0 | S101: 0 | U101: 0 | V101: 0
D103: =SUM(D61:D101) -> 0 | G103: =SUM(G61:G101) -> 0 | J103: Celkom : | K103: =SUM(K61:K101) -> 0 | P103: Celkom: | Q103: =SUM(Q61:Q101) -> 0 | R103: =SUM(R61:R101) -> 0 | S103: =SUM(S61:S101) -> 0 | U103: Za tovar: | V103: =SUM(V61:V101) -> 0
C107: Strana 3: | O107: Strana 3:
B108: P.Č. | C108: Názov tovaru | D108: Poč. stav | E108: Denný príjem | F108: Spolu | G108: Zostatok v sklade | I108: Denný predaj | J108: Cena € | K108: Suma celkom € | O108: Nákupná cena | P108: Predajná cena | Q108: Tržba | R108: Zisk | S108: Zisk po zdanení | U108: Zostatok v krčme | V108: Suma tovaru
B110: 78. | F110: =D110+E110 -> 0 | I110: =D110+E110-G110 -> 0 | J110: 1.2 | K110: =I110*J110 -> 0 | L110: ks. | O110: 0.73 | P110: =J110 -> 1.2 | Q110: =I110*J110 -> 0 | R110: =(P110-O110)*I110 -> 0 | S110: =R110*0.8 -> 0 | U110: =G110 -> 0 | V110: =U110*O110 -> 0
B111: 79. | F111: =D111+E111 -> 0 | I111: =D111+E111-G111 -> 0 | J111: 0.6 | K111: =I111*J111 -> 0 | L111: ks. | O111: 0.29 | P111: =J111 -> 0.6 | Q111: =I111*J111 -> 0 | R111: =(P111-O111)*I111 -> 0 | S111: =R111*0.8 -> 0 | U111: =G111 -> 0 | V111: =U111*O111 -> 0
B112: 80. | F112: 0 | I112: 0 | J112: 0.6 | K112: 0 | L112: ks. | O112: 0.28 | P112: 0.6 | Q112: 0 | R112: =(P112-O112)*I112 -> 0 | S112: 0 | U112: 0 | V112: 0
B113: 81. | F113: 0 | I113: 0 | J113: 1.5 | K113: 0 | L113: ks. | O113: 0.9 | P113: 1.5 | Q113: 0 | R113: 0 | S113: 0 | U113: 0 | V113: 0
B114: 82. | F114: 0 | I114: 0 | J114: 0.6 | K114: 0 | L114: ks. | O114: 0.32 | P114: 0.6 | Q114: 0 | R114: 0 | S114: 0 | U114: 0 | V114: 0
B115: 83. | F115: 0 | I115: 0 | J115: 0.6 | K115: 0 | L115: ks. | O115: 0.26 | P115: 0.6 | Q115: 0 | R115: 0 | S115: 0 | U115: 0 | V115: 0
B116: 84. | F116: 0 | I116: 0 | J116: 0.6 | K116: 0 | L116: ks. | O116: 0.4 | P116: 0.6 | Q116: 0 | R116: 0 | S116: 0 | U116: 0 | V116: 0
B117: 85. | F117: 0 | I117: 0 | K117: 0 | L117: ks. | P117: 0 | Q117: 0 | R117: 0 | S117: 0 | U117: 0 | V117: 0
B118: 86. | F118: 0 | I118: 0 | J118: 0.6 | K118: 0 | L118: ks. | O118: 0.33 | P118: 0.6 | Q118: 0 | R118: 0 | S118: 0 | U118: 0 | V118: 0
B119: 87. | F119: 0 | I119: 0 | J119: 0.3 | K119: 0 | L119: ks. | O119: 0.1 | P119: 0.3 | Q119: 0 | R119: 0 | S119: 0 | U119: 0 | V119: 0
B120: 88. | F120: 0 | I120: 0 | J120: 0.8 | K120: 0 | L120: ks. | O120: 0.5 | P120: 0.8 | Q120: 0 | R120: 0 | S120: 0 | U120: 0 | V120: 0
B121: 89. | F121: 0 | I121: 0 | J121: 2.6 | K121: 0 | L121: ks. | O121: 1.62 | P121: 2.6 | Q121: 0 | R121: 0 | S121: 0 | U121: 0 | V121: 0
B122: 90. | F122: 0 | I122: 0 | J122: 1.5 | K122: 0 | L122: ks. | O122: 0.73 | P122: 1.5 | Q122: 0 | R122: 0 | S122: 0 | U122: 0 | V122: 0
B123: 91. | F123: 0 | I123: 0 | J123: 0.5 | K123: 0 | L123: ks. | O123: 0.24 | P123: 0.5 | Q123: 0 | R123: 0 | S123: 0 | U123: 0 | V123: 0
B124: 92. | F124: 0 | I124: 0 | J124: 0.8 | K124: 0 | L124: ks. | O124: 0.33 | P124: 0.8 | Q124: 0 | R124: 0 | S124: 0 | U124: 0 | V124: 0
B125: 93. | F125: 0 | I125: 0 | J125: 0.6 | K125: 0 | L125: ks. | O125: 0.3 | P125: 0.6 | Q125: 0 | R125: 0 | S125: 0 | U125: 0 | V125: 0
B126: 94. | F126: 0 | I126: 0 | J126: 0.1 | K126: 0 | L126: ks. | O126: 0.052 | P126: 0.1 | Q126: 0 | R126: 0 | S126: 0 | U126: 0 | V126: 0
B127: 95. | F127: 0 | I127: 0 | J127: 0.6 | K127: 0 | L127: ks. | O127: 0.37 | P127: 0.6 | Q127: 0 | R127: 0 | S127: 0 | U127: 0 | V127: 0
B128: 96. | F128: 0 | I128: 0 | J128: 0.9 | K128: 0 | L128: ks. | O128: 0.54 | P128: 0.9 | Q128: 0 | R128: 0 | S128: 0 | U128: 0 | V128: 0
B129: 97. | F129: 0 | I129: 0 | J129: 0.7 | K129: 0 | L129: ks. | O129: 0.3 | P129: 0.7 | Q129: 0 | R129: 0 | S129: 0 | U129: 0 | V129: 0
B130: 98. | F130: 0 | I130: 0 | J130: 0.5 | K130: 0 | L130: ks. | O130: 0.27 | P130: 0.5 | Q130: 0 | R130: 0 | S130: 0 | U130: 0 | V130: 0
B131: 99. | F131: 0 | I131: 0 | J131: 0.6 | K131: 0 | L131: ks. | O131: 0.32 | P131: 0.6 | Q131: 0 | R131: 0 | S131: 0 | U131: 0 | V131: 0
B132: 100. | F132: 0 | I132: 0 | K132: 0 | P132: 0 | Q132: 0 | R132: 0 | S132: 0 | U132: 0 | V132: 0
B133: 101. | F133: 0 | I133: 0 | K133: 0 | P133: 0 | Q133: 0 | R133: 0 | S133: 0 | U133: 0 | V133: 0
B134: 102. | F134: 0 | I134: 0 | K134: 0 | P134: 0 | Q134: 0 | R134: 0 | S134: 0 | U134: 0 | V134: 0
B135: 103. | F135: 0 | I135: 0 | K135: 0 | P135: 0 | Q135: 0 | R135: 0 | S135: 0 | U135: 0 | V135: 0
U136: 0 | V136: 0
D137: =SUM(D110:D135) -> 0 | G137: =SUM(G110:G135) -> 0 | J137: Celkom: | K137: =SUM(K110:K135) -> 0 | P137: Celkom: | Q137: =SUM(Q110:Q135) -> 0 | R137: =SUM(R110:R135) -> 0 | S137: =SUM(S110:S135) -> 0 | U137: Za tovar: | V137: =SUM(V110:V135) -> 0
Q139: Tržba | R139: Zisk | S139: Zisk po zdanený
D141: Stávková: | I141: Strana 1: | J141: =K53 -> 0 | P141: Strana 1 | Q141: =Q53 -> 0 | R141: =R53 -> 0 | S141: =S53 -> 0 | U141: Strana 1: | V141: =V53 -> 0
D142: Refil: | I142: Strana 2: | J142: =K103 -> 0 | P142: Strana 2 | Q142: =Q103 -> 0 | R142: =R103 -> 0 | S142: =S103 -> 0 | U142: Strana 2: | V142: =V103 -> 0
D143: Výdavky: | I143: Strana 3: | J143: =K137 -> 0 | P143: Strana 3 | Q143: =Q137 -> 0 | R143: =R137 -> 0 | S143: =S137 -> 0 | U143: Strana 3: | V143: =V137 -> 0
E145: Spolu: | F145: =SUM(F141:F143) -> 0 | I145: Spolu: | J145: =SUM(J141:J143) -> 0 | P145: Spolu: | Q145: =SUM(Q141:Q143) -> 0 | R145: =SUM(R141:R143) -> 0 | S145: =SUM(S141:S143) -> 0 | U145: Spolu: | V145: =SUM(V141:V143) -> 0
P147: Spolu: | Q147: =Q145-F145 -> 0
I148: Spolu : | J148: =J145-F145 -> 0
C150: Zostatok hotovosť:
C152: rozdiel: | D152: =D150-J148 -> 0

Sheet Inventár
A1: Inventár Jún 2018
A4: Názov tovaru | B4: Zostatok v sklade | C4: J.M | D4: Suma tovaru
A6: aaa | B6: 8 | C6: l. | D6: 8.256
A7: sss | B7: 10 | C7: l. | D7: 4.93
A8: dddd | B8: 4 | C8: l. | D8: 6.08
D9: 0
A10: ref | B10: 17 | C10: ks. | D10: 6.97
A11: erfer | B11: 35 | C11: ks. | D11: 16.45
A12: erferf | B12: 450 | C12: ks. | D12: 288
A13: erferf | B13: 39 | C13: ks. | D13: 19.11
A14: ergfer | B14: 17 | C14: ks. | D14: 15.81
A15: rgerg | B15: 48 | C15: ks. | D15: 36.96
A16: hzh | B16: 1 | C16: ks. | D16: 0.49
A17: zthtz | C17: ks. | D17: 0
C18: ks. | D18: 0
D19: 0
C20: l. | D20: 0
C21: l. | D21: 0
D22: 0
C23: l. | D23: 0
C24: l. | D24: 0
C25: l. | D25: 0
C26: l. | D26: 0
C27: l. | D27: 0
C28: l. | D28: 0
C29: l. | D29: 0
C30: l. | D30: 0
C31: l. | D31: 0
C32: l. | D32: 0
C33: l. | D33: 0
C34: l. | D34: 0
C35: l. | D35: 0
C36: l. | D36: 0
C37: l. | D37: 0
C38: l. | D38: 0
C39: l. | D39: 0
C40: l. | D40: 0
D41: 0
C42: ks. | D42: 0
C43: ks. | D43: 0
C44: ks. | D44: 0
C45: ks. | D45: 0
C46: ks. | D46: 0
C47: ks. | D47: 0
C48: ks. | D48: 0
B49: 0 | C49: l. | D49: 0
C50: ks. | D50: 0
C51: ks. | D51: 0
C52: l. | D52: 0
C53: ks. | D53: 0
C54: ks. | D54: 0
C55: ks. | D55: 0
C56: ks. | D56: 0
D57: 0
C58: gr. | D58: 0
C59: ks. | D59: 0
C60: ks. | D60: 0
C61: ks. | D61: 0
C62: ks. | D62: 0
D63: 0
D64: 0
C65: ks. | D65: 0
C66: ks. | D66: 0
C67: ks. | D67: 0
C68: ks. | D68: 0
C69: ks. | D69: 0
C70: ks. | D70: 0
C71: ks. | D71: 0
C72: ks. | D72: 0
C73: ks. | D73: 0
C74: ks. | D74: 0
D75: 0
D76: 0
C77: ks. | D77: 0
C78: ks. | D78: 0
C79: ks. | D79: 0
D80: 0
D81: 0
D82: 0
C83: ks. | D83: 0
C84: ks. | D84: 0
C85: ks. | D85: 0
C86: ks. | D86: 0
C87: ks. | D87: 0
C88: ks. | D88: 0
C89: ks. | D89: 0
C90: ks. | D90: 0
C91: ks. | D91: 0
C92: ks. | D92: 0
C93: ks. | D93: 0
C94: ks. | D94: 0
C95: ks. | D95: 0
C96: ks. | D96: 0
C97: ks. | D97: 0
C98: ks. | D98: 0
C99: ks. | D99: 0
C100: ks. | D100: 0
C101: ks. | D101: 0
C102: ks. | D102: 0
C103: ks. | D103: 0
C104: ks. | D104: 0
D105: 0
D106: 0
D107: 0
D108: 0
C153: Celkom: | D153: =SUBTOTAL(9,D6:D150) -> 403.056

Sheet Sumár
A1: 10 | C1: Vyučtovanie výčapu 2017 | O1: Mesačný sumár
G2: Meno: | P2: =I2 -> 0
G3: Dátum: | P3: =I3 -> 0
C13: Strana 1: | O13: Strana 1:
B14: P.Č. | C14: Názov tovaru | D14: Poč. stav | E14: Mesačný príjem | F14: J.M. | G14: Zostatok v sklade | I14: Mesačný predaj | J14: Cena € | K14: Suma celkom € | L14: J.M. | O14: Nákupná cena | P14: Predajná cena | Q14: Tržba | R14: Zisk | S14: Zisk po zdanení
B16: 1. | C16: =Originál!C16 -> aaa | E16: 300 | F16: =Originál!L16 -> l. | H16: 0 | I16: 291.4 | J16: =Originál!J16 -> 2 | K16: =I16*J16 -> 582.8 | L16: =Originál!L16 -> l. | O16: =Originál!O16 -> 1.032 | P16: =J16 -> 2 | Q16: =I16*J16 -> 582.8 | R16: =(P16-O16)*I16 -> 282.0752 | S16: =R16*0.8 -> 225.66016
B17: 2. | C17: =Originál!C17 -> sss | E17: 140 | F17: =Originál!L17 -> l. | H17: 0 | I17: 180.4 | J17: =Originál!J17 -> 2 | K17: =I17*J17 -> 360.8 | L17: =Originál!L17 -> l. | O17: =Originál!O17 -> 0.493 | P17: =J17 -> 2 | Q17: =I17*J17 -> 360.8 | R17: =(P17-O17)*I17 -> 271.8628 | S17: =R17*0.8 -> 217.49024
B18: 3. | C18: =Originál!C18 -> dddd | E18: 30 | F18: =Originál!L18 -> l. | H18: 0 | I18: 21.4 | J18: =Originál!J18 -> 2.8 | K18: 59.92 | L18: =Originál!L18 -> l. | O18: =Originál!O18 -> 1.52 | P18: 2.8 | Q18: 59.92 | R18: =(P18-O18)*I18 -> 27.392 | S18: 21.9136
B19: 4. | C19: =Originál!C19 -> 0 | E19: 0 | F19: =Originál!L19 -> 0 | H19: 0 | I19: 0 | J19: =Originál!J19 -> 0 | K19: 0 | L19: =Originál!L19 -> 0 | O19: =Originál!O19 -> 0 | P19: 0 | Q19: 0 | R19: 0 | S19: 0
B20: 5. | C20: =Originál!C20 -> ref | E20: 20 | F20: =Originál!L20 -> ks. | H20: 0 | I20: 11 | J20: =Originál!J20 -> 0.8 | K20: 8.8 | L20: =Originál!L20 -> ks. | O20: =Originál!O20 -> 0.41 | P20: 0.8 | Q20: 8.8 | R20: 4.29 | S20: 3.432
B21: 6. | C21: =Originál!C21 -> erfer | E21: 20 | F21: =Originál!L21 -> ks. | H21: 0 | I21: 33 | J21: =Originál!J21 -> 0.9 | K21: 29.7 | L21: =Originál!L21 -> ks. | O21: =Originál!O21 -> 0.47 | P21: 0.9 | Q21: 29.7 | R21: 14.19 | S21: 11.352
B22: 7. | C22: =Originál!C22 -> erferf | E22: 40 | F22: =Originál!L22 -> ks. | H22: 0 | I22: 29 | J22: =Originál!J22 -> 1.2 | K22: 34.8 | L22: =Originál!L22 -> ks. | O22: =Originál!O22 -> 0.64 | P22: 1.2 | Q22: 34.8 | R22: 16.24 | S22: 12.992
B23: 8. | C23: =Originál!C23 -> erferf | E23: 40 | F23: =Originál!L23 -> ks. | H23: 0 | I23: 38 | J23: =Originál!J23 -> 0.9 | K23: 34.2 | L23: =Originál!L23 -> ks. | O23: =Originál!O23 -> 0.49 | P23: 0.9 | Q23: 34.2 | R23: 15.58 | S23: 12.464
B24: 9. | C24: =Originál!C24 -> ergfer | E24: 20 | F24: =Originál!L24 -> ks. | H24: 0 | I24: 23 | J24: =Originál!J24 -> 1.3 | K24: 29.9 | L24: =Originál!L24 -> ks. | O24: =Originál!O24 -> 0.93 | P24: 1.3 | Q24: 29.9 | R24: 8.51 | S24: 6.808
B25: 10. | C25: =Originál!C25 -> rgerg | E25: 0 | F25: =Originál!L25 -> ks. | H25: 0 | I25: 0 | J25: =Originál!J25 -> 1 | K25: 0 | L25: =Originál!L25 -> ks. | O25: =Originál!O25 -> 0.77 | P25: 1 | Q25: 0 | R25: 0 | S25: 0
B26: 11. | C26: =Originál!C26 -> hzh | E26: 0 | F26: =Originál!L26 -> ks. | H26: 0 | I26: -3 | J26: =Originál!J26 -> 0.9 | K26: -2.7 | L26: =Originál!L26 -> ks. | O26: =Originál!O26 -> 0.49 | P26: 0.9 | Q26: -2.7 | R26: -1.23 | S26: -0.984
B27: 12. | C27: =Originál!C27 -> zthtz | E27: 0 | F27: =Originál!L27 -> ks. | H27: 0 | I27: 0 | J27: =Originál!J27 -> 1 | K27: 0 | L27: =Originál!L27 -> ks. | O27: =Originál!O27 -> 0.42 | P27: 1 | Q27: 0 | R27: 0 | S27: 0
B28: 13. | C28: =Originál!C28 -> 0 | E28: 0 | F28: =Originál!L28 -> ks. | H28: 0 | I28: 0 | J28: =Originál!J28 -> 1.2 | K28: 0 | L28: =Originál!L28 -> ks. | O28: =Originál!O28 -> 0.75 | P28: 1.2 | Q28: 0 | R28: 0 | S28: 0
B29: 14. | C29: =Originál!C29 -> 0 | E29: 0 | F29: =Originál!L29 -> 0 | H29: 0 | I29: 0 | J29: =Originál!J29 -> 0 | K29: 0 | L29: =Originál!L29 -> 0 | O29: =Originál!O29 -> 0 | P29: 0 | Q29: 0 | R29: 0 | S29: 0
B30: 15. | C30: =Originál!C30 -> 0 | E30: 72 | F30: =Originál!L30 -> l. | H30: 0 | I30: 40.2 | J30: =Originál!J30 -> 3 | K30: 120.6 | L30: =Originál!L30 -> l. | O30: =Originál!O30 -> 1.29 | P30: 3 | Q30: 120.6 | R30: 68.742 | S30: 54.9936
B31: 16. | C31: =Originál!C31 -> 0 | E31: 0 | F31: =Originál!L31 -> l. | H31: 0 | I31: -5.8 | J31: =Originál!J31 -> 3 | K31: -17.4 | L31: =Originál!L31 -> l. | O31: =Originál!O31 -> 1.29 | P31: 3 | Q31: -17.4 | R31: -9.918 | S31: -7.9344
B32: 17. | C32: =Originál!C32 -> 0 | E32: 0 | F32: =Originál!L32 -> 0 | H32: 0 | I32: 0 | J32: =Originál!J32 -> 0 | K32: 0 | L32: =Originál!L32 -> 0 | O32: =Originál!O32 -> 0 | P32: 0 | Q32: 0 | R32: 0 | S32: 0
B33: 18. | C33: =Originál!C33 -> 0 | E33: 24 | F33: =Originál!L33 -> l. | H33: 0 | I33: 15.9 | J33: =Originál!J33 -> 12 | K33: 190.8 | L33: =Originál!L33 -> l. | O33: =Originál!O33 -> 6.35 | P33: 12 | Q33: 190.8 | R33: 89.835 | S33: 71.868
B34: 19. | C34: =Originál!C34 -> 0 | E34: 36 | F34: =Originál!L34 -> l. | H34: 0 | I34: 21.45 | J34: =Originál!J34 -> 12 | K34: 257.4 | L34: =Originál!L34 -> l. | O34: =Originál!O34 -> 6.35 | P34: 12 | Q34: 257.4 | R34: 121.1925 | S34: 96.954
B35: 20. | C35: =Originál!C35 -> 0 | E35: 8.4 | F35: =Originál!L35 -> l. | H35: 0 | I35: 6.65 | J35: =Originál!J35 -> 14 | K35: 93.1 | L35: =Originál!L35 -> l. | O35: =Originál!O35 -> 5.83 | P35: 14 | Q35: 93.1 | R35: 54.3305 | S35: 43.4644
B36: 21. | C36: =Originál!C36 -> 0 | E36: 6 | F36: =Originál!L36 -> l. | H36: 0 | I36: 11.25 | J36: =Originál!J36 -> 12 | K36: 135 | L36: =Originál!L36 -> l. | O36: =Originál!O36 -> 5.78 | P36: 12 | Q36: 135 | R36: 69.975 | S36: 55.98
B37: 22. | C37: =Originál!C37 -> 0 | E37: 3 | F37: =Originál!L37 -> l. | H37: 0 | I37: 2.7 | J37: =Originál!J37 -> 14 | K37: 37.8 | L37: =Originál!L37 -> l. | O37: =Originál!O37 -> 7.1 | P37: 14 | Q37: 37.8 | R37: 18.63 | S37: 14.904
B38: 23. | C38: =Originál!C38 -> 0 | E38: 0 | F38: =Originál!L38 -> l. | H38: 0 | I38: 0.55 | J38: =Originál!J38 -> 14 | K38: 7.7 | L38: =Originál!L38 -> l. | O38: =Originál!O38 -> 5.74 | P38: 14 | Q38: 7.7 | R38: 4.543 | S38: 3.6344
B39: 24. | C39: =Originál!C39 -> 0 | E39: 6 | F39: =Originál!L39 -> l. | H39: 0 | I39: 6.85 | J39: =Originál!J39 -> 12 | K39: 82.2 | L39: =Originál!L39 -> l. | O39: =Originál!O39 -> 6.17 | P39: 12 | Q39: 82.2 | R39: 39.9355 | S39: 31.9484
B40: 25. | C40: =Originál!C40 -> 0 | E40: 12 | F40: =Originál!L40 -> l. | H40: 0 | I40: 17.2 | J40: =Originál!J40 -> 12 | K40: 206.4 | L40: =Originál!L40 -> l. | O40: =Originál!O40 -> 4.92 | P40: 12 | Q40: 206.4 | R40: 121.776 | S40: 97.4208
B41: 26. | C41: =Originál!C41 -> 0 | E41: 0 | F41: =Originál!L41 -> l. | H41: 0 | I41: 1.3 | J41: =Originál!J41 -> 14 | K41: 18.2 | L41: =Originál!L41 -> l. | O41: =Originál!O41 -> 4.38 | P41: 14 | Q41: 18.2 | R41: 12.506 | S41: 10.0048
B42: 27. | C42: =Originál!C42 -> 0 | E42: 0 | F42: =Originál!L42 -> l. | H42: 0 | I42: 4.05 | J42: =Originál!J42 -> 20 | K42: 81 | L42: =Originál!L42 -> l. | O42: =Originál!O42 -> 10.8 | P42: 20 | Q42: 81 | R42: 37.26 | S42: 29.808
B43: 28. | C43: =Originál!C43 -> 0 | E43: 6 | F43: =Originál!L43 -> l. | H43: 0 | I43: 5.8 | J43: =Originál!J43 -> 20 | K43: 116 | L43: =Originál!L43 -> l. | O43: =Originál!O43 -> 9.69 | P43: 20 | Q43: 116 | R43: 59.798 | S43: 47.8384
B44: 29. | C44: =Originál!C44 -> 0 | E44: 3 | F44: =Originál!L44 -> l. | H44: 0 | I44: 2.95 | J44: =Originál!J44 -> 14 | K44: 41.3 | L44: =Originál!L44 -> l. | O44: =Originál!O44 -> 7.15 | P44: 14 | Q44: 41.3 | R44: 20.2075 | S44: 16.166
B45: 30. | C45: =Originál!C45 -> 0 | E45: 0 | F45: =Originál!L45 -> l. | H45: 0 | I45: 3.25 | J45: =Originál!J45 -> 24 | K45: 78 | L45: =Originál!L45 -> l. | O45: =Originál!O45 -> 16.91 | P45: 24 | Q45: 78 | R45: 23.0425 | S45: 18.434
B46: 31. | C46: =Originál!C46 -> 0 | E46: 0 | F46: =Originál!L46 -> l. | H46: 0 | I46: 0 | J46: =Originál!J46 -> 20 | K46: 0 | L46: =Originál!L46 -> l. | O46: =Originál!O46 -> 5.998 | P46: 20 | Q46: 0 | R46: 0 | S46: 0
B47: 32. | C47: =Originál!C47 -> 0 | E47: 0 | F47: =Originál!L47 -> l. | H47: 0 | I47: 0 | J47: =Originál!J47 -> 20 | K47: 0 | L47: =Originál!L47 -> l. | O47: =Originál!O47 -> 9.69 | P47: 20 | Q47: 0 | R47: 0 | S47: 0
B48: 33. | C48: =Originál!C48 -> 0 | E48: 0 | F48: =Originál!L48 -> l. | G48: 0 | H48: 0 | I48: 0.55 | J48: =Originál!J48 -> 12 | K48: 6.6 | L48: =Originál!L48 -> l. | O48: =Originál!O48 -> 5.08 | P48: 12 | Q48: 6.6 | R48: 3.806 | S48: 3.0448
B49: 34. | C49: =Originál!C49 -> 0 | E49: 3 | F49: =Originál!L49 -> l. | G49: 0 | H49: 0 | I49: 0.95 | J49: =Originál!J49 -> 18 | K49: 17.1 | L49: =Originál!L49 -> l. | O49: =Originál!O49 -> 4.9 | P49: 18 | Q49: 17.1 | R49: 12.445 | S49: 9.956
B50: 35. | C50: =Originál!C50 -> 0 | E50: 3 | F50: =Originál!L50 -> l. | G50: 0 | H50: 0 | I50: 1.85 | J50: =Originál!J50 -> 24 | K50: 44.4 | L50: =Originál!L50 -> l. | O50: =Originál!O50 -> 11.45 | P50: 24 | Q50: 44.4 | R50: 23.2175 | S50: 18.574
B51: 36. | C51: =Originál!C51 -> 0 | E51: 0 | F51: =Originál!L51 -> 0 | G51: 0 | H51: 0 | I51: 0 | K51: 0 | L51: =Originál!L51 -> 0 | O51: =Originál!O51 -> 0 | P51: 0 | Q51: 0 | R51: 0 | S51: 0
P52: 0
D53: =SUM(D16:D51) -> 0 | G53: =SUM(G16:G51) -> 0 | J53: Celkom: | K53: =SUM(K16:K51) -> 2654.42 | P53: Celkom: | Q53: =SUM(Q16:Q51) -> 2654.42 | R53: =SUM(R16:R51) -> 1410.234 | S53: =SUM(S16:S51) -> 1128.1872
C58: Strana 2: | O58: Strana 2:
B59: P.Č. | C59: Názov tovaru | D59: Poč. stav | E59: Mesačný príjem | F59: Spolu | G59: Zostatok v sklade | I59: Mesačný predaj | J59: Cena € | K59: Suma celkom € | O59: Nákupná cena | P59: Predajná cena | Q59: Tržba | R59: Zisk | S59: Zisk po zdanení
B61: 37. | C61: =Originál!C61 -> 0 | E61: 0 | F61: =D61+E61 -> 0 | H61: 0 | I61: 18 | J61: =Originál!J61 -> 1.1 | K61: =I61*J61 -> 19.8 | L61: =Originál!L61 -> ks. | O61: =Originál!O61 -> 0.78 | P61: =J61 -> 1.1 | Q61: =I61*J61 -> 19.8 | R61: =(P61-O61)*I61 -> 5.76 | S61: =R61*0.8 -> 4.608
B62: 38. | C62: =Originál!C62 -> 0 | E62: 0 | F62: =D62+E62 -> 0 | H62: 0 | I62: -4.1 | J62: =Originál!J62 -> 2 | K62: =I62*J62 -> -8.2 | L62: =Originál!L62 -> ks. | O62: =Originál!O62 -> 0.726 | P62: =J62 -> 2 | Q62: =I62*J62 -> -8.2 | R62: =(P62-O62)*I62 -> -5.2234 | S62: =R62*0.8 -> -4.17872
B63: 39. | C63: =Originál!C63 -> 0 | E63: 60 | F63: 60 | H63: 0 | I63: 23 | J63: =Originál!J63 -> 0.9 | K63: 20.7 | L63: =Originál!L63 -> ks. | O63: =Originál!O63 -> 0.528 | P63: 0.9 | Q63: 20.7 | R63: =(P63-O63)*I63 -> 8.556 | S63: 6.8448
B64: 40. | C64: =Originál!C64 -> 0 | E64: 0 | F64: 0 | H64: 0 | I64: 0 | J64: =Originál!J64 -> 1.1 | K64: 0 | L64: =Originál!L64 -> ks. | O64: =Originál!O64 -> 0.49 | P64: 1.1 | Q64: 0 | R64: 0 | S64: 0
B65: 41. | C65: =Originál!C65 -> 0 | E65: 54 | F65: 54 | H65: 0 | I65: 50 | J65: =Originál!J65 -> 0.5 | K65: 25 | L65: =Originál!L65 -> ks. | O65: =Originál!O65 -> 0.2 | P65: 0.5 | Q65: 25 | R65: 15 | S65: 12
B66: 42. | C66: =Originál!C66 -> 0 | E66: 0 | F66: 0 | H66: 0 | I66: 13 | J66: =Originál!J66 -> 1.8 | K66: 23.4 | L66: =Originál!L66 -> ks. | O66: =Originál!O66 -> 0.25 | P66: 1.8 | Q66: 23.4 | R66: 20.15 | S66: 16.12
B67: 43. | C67: =Originál!C67 -> 0 | E67: 40 | F67: 40 | H67: 0 | I67: 21 | J67: =Originál!J67 -> 0.5 | K67: 10.5 | L67: =Originál!L67 -> ks. | O67: =Originál!O67 -> 0.11 | P67: 0.5 | Q67: 10.5 | R67: 8.19 | S67: 6.552
B68: 44. | C68: =Originál!C68 -> 0 | E68: 0 | F68: 0 | H68: 0 | I68: 19.6 | J68: =Originál!J68 -> 1.5 | K68: 29.4 | L68: =Originál!L68 -> l. | O68: =Originál!O68 -> 0.23 | P68: 1.5 | Q68: 29.4 | R68: 24.892 | S68: 19.9136
B69: 45. | C69: =Originál!C69 -> 0 | E69: 0 | F69: 0 | H69: 0 | I69: -5 | J69: =Originál!J69 -> 1 | K69: -5 | L69: =Originál!L69 -> ks. | O69: =Originál!O69 -> 0.46 | P69: 1 | Q69: -5 | R69: -2.7 | S69: -2.16
B70: 46. | C70: =Originál!C70 -> 0 | E70: 12 | F70: 12 | H70: 0 | I70: 8.4 | J70: =Originál!J70 -> 3 | K70: 25.2 | L70: =Originál!L70 -> ks. | O70: =Originál!O70 -> 1.188 | P70: 3 | Q70: 25.2 | R70: 15.2208 | S70: 12.17664
B71: 47. | C71: =Originál!C71 -> 0 | E71: 12 | F71: 12 | H71: 0 | I71: 8 | J71: =Originál!J71 -> 1.1 | K71: 8.8 | L71: =Originál!L71 -> l. | O71: =Originál!O71 -> 0.33 | P71: 1.1 | Q71: 8.8 | R71: 6.16 | S71: 4.928
B72: 48. | C72: =Originál!C72 -> 0 | E72: 0 | F72: 0 | H72: 0 | I72: 16 | J72: =Originál!J72 -> 0.8 | K72: 12.8 | L72: =Originál!L72 -> ks. | O72: =Originál!O72 -> 0.32 | P72: 0.8 | Q72: 12.8 | R72: 7.68 | S72: 6.144
B73: 49. | C73: =Originál!C73 -> 0 | E73: 0 | F73: 0 | H73: 0 | I73: 0 | J73: =Originál!J73 -> 1.1 | K73: 0 | L73: =Originál!L73 -> ks. | O73: =Originál!O73 -> 0.624 | P73: 1.1 | Q73: 0 | R73: 0 | S73: 0
B74: 50. | C74: =Originál!C74 -> 0 | E74: 0 | F74: 0 | H74: 0 | I74: -8 | J74: =Originál!J74 -> 1.1 | K74: -8.8 | L74: =Originál!L74 -> ks. | O74: =Originál!O74 -> 0.504 | P74: 1.1 | Q74: -8.8 | R74: -4.768 | S74: -3.8144
B75: 51. | C75: =Originál!C75 -> 0 | E75: 0 | F75: 0 | H75: 0 | I75: 5 | J75: =Originál!J75 -> 1.2 | K75: 6 | L75: =Originál!L75 -> ks. | O75: =Originál!O75 -> 0.64 | P75: 1.2 | Q75: 6 | R75: 2.8 | S75: 2.24
B76: 52. | C76: =Originál!C76 -> 0 | E76: 0 | F76: 0 | H76: 0 | I76: 0 | J76: =Originál!J76 -> 0 | K76: 0 | L76: =Originál!L76 -> 0 | O76: =Originál!O76 -> 0 | P76: 0 | Q76: 0 | R76: 0 | S76: 0
B77: 53. | C77: =Originál!C77 -> 0 | E77: 0 | F77: 0 | H77: 0 | I77: 78.57142857 | J77: =Originál!J77 -> 0.5 | K77: 39.28571429 | L77: =Originál!L77 -> gr. | O77: =Originál!O77 -> 0.034 | P77: 0.5 | Q77: =K77 -> 39.28571429 | R77: 36.61428571 | S77: 29.29142857
B78: 54. | C78: =Originál!C78 -> 0 | E78: 0 | F78: 0 | H78: 0 | I78: 19 | J78: =Originál!J78 -> 0.5 | K78: 9.5 | L78: =Originál!L78 -> ks. | O78: =Originál!O78 -> 0.14 | P78: 0.5 | Q78: 9.5 | R78: =(P78-O78)*I78 -> 6.84 | S78: 5.472
B79: 55. | C79: =Originál!C79 -> 0 | E79: 0 | F79: 0 | H79: 0 | I79: 16 | J79: =Originál!J79 -> 0.5 | K79: 8 | L79: =Originál!L79 -> ks. | O79: =Originál!O79 -> 0.058 | P79: 0.5 | Q79: 8 | R79: =(P79-O79)*I79 -> 7.072 | S79: 5.6576
B80: 56. | C80: =Originál!C80 -> 0 | E80: 100 | F80: 100 | H80: 0 | I80: 92 | J80: =Originál!J80 -> 0.1 | K80: 9.2 | L80: =Originál!L80 -> ks. | O80: =Originál!O80 -> 0.036 | P80: 0.1 | Q80: 9.2 | R80: 5.888 | S80: 4.7104
B81: 57. | C81: =Originál!C81 -> 0 | E81: 0 | F81: 0 | H81: 0 | I81: 428 | J81: =Originál!J81 -> 0.05 | K81: 21.4 | L81: =Originál!L81 -> ks. | O81: =Originál!O81 -> 0.08 | P81: 0.05 | Q81: 21.4 | R81: -12.84 | S81: -10.272
B82: 58. | C82: =Originál!C82 -> 0 | E82: 0 | F82: 0 | H82: 0 | I82: 0 | J82: =Originál!J82 -> 0 | K82: 0 | L82: =Originál!L82 -> 0 | O82: =Originál!O82 -> 0 | P82: 0 | Q82: 0 | R82: 0 | S82: 0
B83: 59. | C83: =Originál!C83 -> 0 | E83: 0 | F83: 0 | H83: 0 | I83: 0 | J83: =Originál!J83 -> 0 | K83: 0 | L83: =Originál!L83 -> 0 | O83: =Originál!O83 -> 0 | P83: 0 | Q83: 0 | R83: 0 | S83: 0
B84: 60. | C84: =Originál!C84 -> 0 | E84: 60 | F84: 60 | H84: 0 | I84: 38 | J84: =Originál!J84 -> 3.2 | K84: 121.6 | L84: =Originál!L84 -> ks. | O84: =Originál!O84 -> 3.04 | P84: 3.2 | Q84: 121.6 | R84: 6.08 | S84: 4.864
B85: 61. | C85: =Originál!C85 -> 0 | E85: 20 | F85: 20 | H85: 0 | I85: 18 | J85: =Originál!J85 -> 3.3 | K85: 59.4 | L85: =Originál!L85 -> ks. | O85: =Originál!O85 -> 3.3 | P85: 3.3 | Q85: 59.4 | R85: 0 | S85: 0
B86: 62. | C86: =Originál!C86 -> 0 | E86: 0 | F86: 0 | H86: 0 | I86: 0 | J86: =Originál!J86 -> 3.4 | K86: 0 | L86: =Originál!L86 -> ks. | O86: =Originál!O86 -> 3.32 | P86: 3.4 | Q86: 0 | R86: 0 | S86: 0
B87: 63. | C87: =Originál!C87 -> 0 | E87: 20 | F87: 20 | H87: 0 | I87: 14 | J87: =Originál!J87 -> 3.6 | K87: 50.4 | L87: =Originál!L87 -> ks. | O87: =Originál!O87 -> 2.95 | P87: 3.6 | Q87: 50.4 | R87: 9.1 | S87: 7.28
B88: 64. | C88: =Originál!C88 -> 0 | E88: 110 | F88: 110 | H88: 0 | I88: 54 | J88: =Originál!J88 -> 3.3 | K88: 178.2 | L88: =Originál!L88 -> ks. | O88: =Originál!O88 -> 3.04 | P88: 3.3 | Q88: 178.2 | R88: 14.04 | S88: 11.232
B89: 65. | C89: =Originál!C89 -> 0 | E89: 20 | F89: 20 | H89: 0 | I89: 10 | J89: =Originál!J89 -> 3.2 | K89: 32 | L89: =Originál!L89 -> ks. | O89: =Originál!O89 -> 3.04 | P89: 3.2 | Q89: 32 | R89: 1.6 | S89: 1.28
B90: 66. | C90: =Originál!C90 -> 0 | E90: 0 | F90: 0 | H90: 0 | I90: 0 | J90: =Originál!J90 -> 3.1 | K90: 0 | L90: =Originál!L90 -> ks. | O90: =Originál!O90 -> 2.94 | P90: 3.1 | Q90: 0 | R90: 0 | S90: 0
B91: 67. | C91: =Originál!C91 -> 0 | E91: 0 | F91: 0 | H91: 0 | I91: 0 | J91: =Originál!J91 -> 3.2 | K91: 0 | L91: =Originál!L91 -> ks. | O91: =Originál!O91 -> 3.04 | P91: 3.2 | Q91: 0 | R91: 0 | S91: 0
B92: 68. | C92: =Originál!C92 -> 0 | E92: 80 | F92: 80 | H92: 0 | I92: 34 | J92: =Originál!J92 -> 3.1 | K92: 105.4 | L92: =Originál!L92 -> ks. | O92: =Originál!O92 -> 0 | P92: 3.1 | Q92: 105.4 | R92: 105.4 | S92: 84.32
B93: 69. | C93: =Originál!C93 -> 0 | E93: 0 | F93: 0 | H93: 0 | I93: 0 | J93: =Originál!J93 -> 3.3 | K93: 0 | L93: =Originál!L93 -> ks. | O93: =Originál!O93 -> 0 | P93: 3.3 | Q93: 0 | R93: 0 | S93: 0
B94: 70. | C94: =Originál!C94 -> 0 | E94: 0 | F94: 0 | H94: 0 | I94: 0 | J94: =Originál!J94 -> 0 | K94: 0 | L94: =Originál!L94 -> 0 | O94: =Originál!O94 -> 0 | P94: 0 | Q94: 0 | R94: 0 | S94: 0
B95: 71. | C95: =Originál!C95 -> 0 | E95: 0 | F95: 0 | H95: 0 | I95: 0 | J95: =Originál!J95 -> 0 | K95: 0 | L95: =Originál!L95 -> 0 | O95: =Originál!O95 -> 0 | P95: 0 | Q95: 0 | R95: 0 | S95: 0
B96: 72. | C96: =Originál!C96 -> 0 | E96: 30 | F96: 30 | H96: 0 | I96: -24 | J96: =Originál!J96 -> 0.2 | K96: -4.8 | L96: =Originál!L96 -> ks. | O96: =Originál!O96 -> 0.089 | P96: 0.2 | Q96: -4.8 | R96: -2.664 | S96: -2.1312
B97: 73. | C97: =Originál!C97 -> 0 | E97: 150 | F97: 150 | H97: 0 | I97: 128 | J97: =Originál!J97 -> 0.5 | K97: 64 | L97: =Originál!L97 -> ks. | O97: =Originál!O97 -> 0.17 | P97: 0.5 | Q97: 64 | R97: 42.24 | S97: 33.792
B98: 74. | C98: =Originál!C98 -> 0 | E98: 100 | F98: 100 | G98: 0 | H98: 0 | I98: 16 | J98: =Originál!J98 -> 0.1 | K98: 1.6 | L98: =Originál!L98 -> ks. | O98: =Originál!O98 -> 0.04 | P98: 0.1 | Q98: 1.6 | R98: 0.96 | S98: 0.768
B99: 75. | C99: =Originál!C99 -> 0 | E99: 0 | F99: 0 | G99: 0 | H99: 0 | I99: 0 | J99: =Originál!J99 -> 0 | K99: 0 | L99: =Originál!L99 -> 0 | O99: =Originál!O99 -> 0 | P99: 0 | Q99: 0 | R99: 0 | S99: 0
B100: 76. | C100: =Originál!C100 -> 0 | E100: 0 | F100: 0 | G100: 0 | H100: 0 | I100: 0 | J100: =Originál!J100 -> 0 | K100: 0 | L100: =Originál!L100 -> 0 | O100: =Originál!O100 -> 0 | P100: 0 | Q100: 0 | R100: 0 | S100: 0
B101: 77. | C101: =Originál!C101 -> 0 | E101: 0 | F101: 0 | G101: 0 | H101: 0 | I101: 0 | J101: =Originál!J101 -> 0 | K101: 0 | L101: =Originál!L101 -> 0 | O101: =Originál!O101 -> 0 | P101: 0 | Q101: 0 | R101: 0 | S101: 0
D103: =SUM(D61:D101) -> 0 | G103: =SUM(G61:G101) -> 0 | J103: Celkom : | K103: =SUM(K61:K101) -> 854.7857143 | P103: Celkom: | Q103: =SUM(Q61:Q101) -> 854.7857143 | R103: =SUM(R61:R101) -> 322.0476857 | S103: =SUM(S61:S101) -> 257.6381486
C107: Strana 3: | O107: Strana 3:
B108: P.Č. | C108: Názov tovaru | D108: Poč. stav | E108: Mesačný príjem | F108: Spolu | G108: Zostatok v sklade | I108: Mesačný predaj | J108: Cena € | K108: Suma celkom € | O108: Nákupná cena | P108: Predajná cena | Q108: Tržba | R108: Zisk | S108: Zisk po zdanení
B110: 78. | C110: =Originál!C110 -> 0 | E110: 0 | F110: =D110+E110 -> 0 | H110: 0 | I110: 0 | J110: =Originál!J110 -> 1.2 | K110: =I110*J110 -> 0 | L110: =Originál!L110 -> ks. | O110: =Originál!O110 -> 0.73 | P110: =J110 -> 1.2 | Q110: =I110*J110 -> 0 | R110: =(P110-O110)*I110 -> 0 | S110: =R110*0.8 -> 0
B111: 79. | C111: =Originál!C111 -> 0 | E111: 40 | F111: =D111+E111 -> 40 | H111: 0 | I111: 16 | J111: =Originál!J111 -> 0.6 | K111: =I111*J111 -> 9.6 | L111: =Originál!L111 -> ks. | O111: =Originál!O111 -> 0.29 | P111: =J111 -> 0.6 | Q111: =I111*J111 -> 9.6 | R111: =(P111-O111)*I111 -> 4.96 | S111: =R111*0.8 -> 3.968
B112: 80. | C112: =Originál!C112 -> 0 | E112: 20 | F112: 20 | H112: 0 | I112: 18 | J112: =Originál!J112 -> 0.6 | K112: 10.8 | L112: =Originál!L112 -> ks. | O112: =Originál!O112 -> 0.28 | P112: 0.6 | Q112: 10.8 | R112: =(P112-O112)*I112 -> 5.76 | S112: 4.608
B113: 81. | C113: =Originál!C113 -> 0 | E113: 10 | F113: 10 | H113: 0 | I113: 9 | J113: =Originál!J113 -> 1.5 | K113: 13.5 | L113: =Originál!L113 -> ks. | O113: =Originál!O113 -> 0.9 | P113: 1.5 | Q113: 13.5 | R113: 5.4 | S113: 4.32
B114: 82. | C114: =Originál!C114 -> 0 | E114: 10 | F114: 10 | H114: 0 | I114: 4 | J114: =Originál!J114 -> 0.6 | K114: 2.4 | L114: =Originál!L114 -> ks. | O114: =Originál!O114 -> 0.32 | P114: 0.6 | Q114: 2.4 | R114: 1.12 | S114: 0.896
B115: 83. | C115: =Originál!C115 -> 0 | E115: 10 | F115: 10 | H115: 0 | I115: 5 | J115: =Originál!J115 -> 0.6 | K115: 3 | L115: =Originál!L115 -> ks. | O115: =Originál!O115 -> 0.26 | P115: 0.6 | Q115: 3 | R115: 1.7 | S115: 1.36
B116: 84. | C116: =Originál!C116 -> 0 | E116: 0 | F116: 0 | H116: 0 | I116: 3 | J116: =Originál!J116 -> 0.6 | K116: 1.8 | L116: =Originál!L116 -> ks. | O116: =Originál!O116 -> 0.4 | P116: 0.6 | Q116: 1.8 | R116: 0.6 | S116: 0.48
B117: 85. | C117: =Originál!C117 -> 0 | E117: 0 | F117: 0 | H117: 0 | I117: 0 | J117: =Originál!J117 -> 0 | K117: 0 | L117: =Originál!L117 -> ks. | O117: =Originál!O117 -> 0 | P117: 0 | Q117: 0 | R117: 0 | S117: 0
B118: 86. | C118: =Originál!C118 -> 0 | E118: 40 | F118: 40 | H118: 0 | I118: 21 | J118: =Originál!J118 -> 0.6 | K118: 12.6 | L118: =Originál!L118 -> ks. | O118: =Originál!O118 -> 0.33 | P118: 0.6 | Q118: 12.6 | R118: 5.67 | S118: 4.536
B119: 87. | C119: =Originál!C119 -> 0 | E119: 0 | F119: 0 | H119: 0 | I119: 4 | J119: =Originál!J119 -> 0.3 | K119: 1.2 | L119: =Originál!L119 -> ks. | O119: =Originál!O119 -> 0.1 | P119: 0.3 | Q119: 1.2 | R119: 0.8 | S119: 0.64
B120: 88. | C120: =Originál!C120 -> 0 | E120: 24 | F120: 24 | H120: 0 | I120: 43 | J120: =Originál!J120 -> 0.8 | K120: 34.4 | L120: =Originál!L120 -> ks. | O120: =Originál!O120 -> 0.5 | P120: 0.8 | Q120: 34.4 | R120: 12.9 | S120: 10.32
B121: 89. | C121: =Originál!C121 -> 0 | E121: 6 | F121: 6 | H121: 0 | I121: 3 | J121: =Originál!J121 -> 2.6 | K121: 7.8 | L121: =Originál!L121 -> ks. | O121: =Originál!O121 -> 1.62 | P121: 2.6 | Q121: 7.8 | R121: 2.94 | S121: 2.352
B122: 90. | C122: =Originál!C122 -> 0 | E122: 0 | F122: 0 | H122: 0 | I122: 0 | J122: =Originál!J122 -> 1.5 | K122: 0 | L122: =Originál!L122 -> ks. | O122: =Originál!O122 -> 0.73 | P122: 1.5 | Q122: 0 | R122: 0 | S122: 0
B123: 91. | C123: =Originál!C123 -> 0 | E123: 0 | F123: 0 | H123: 0 | I123: 15 | J123: =Originál!J123 -> 0.5 | K123: 7.5 | L123: =Originál!L123 -> ks. | O123: =Originál!O123 -> 0.24 | P123: 0.5 | Q123: 7.5 | R123: 3.9 | S123: 3.12
B124: 92. | C124: =Originál!C124 -> 0 | E124: 0 | F124: 0 | H124: 0 | I124: 2 | J124: =Originál!J124 -> 0.8 | K124: 1.6 | L124: =Originál!L124 -> ks. | O124: =Originál!O124 -> 0.33 | P124: 0.8 | Q124: 1.6 | R124: 0.94 | S124: 0.752
B125: 93. | C125: =Originál!C125 -> 0 | E125: 24 | F125: 24 | H125: 0 | I125: 16 | J125: =Originál!J125 -> 0.6 | K125: 9.6 | L125: =Originál!L125 -> ks. | O125: =Originál!O125 -> 0.3 | P125: 0.6 | Q125: 9.6 | R125: 4.8 | S125: 3.84
B126: 94. | C126: =Originál!C126 -> 0 | E126: 100 | F126: 100 | H126: 0 | I126: 70 | J126: =Originál!J126 -> 0.1 | K126: 7 | L126: =Originál!L126 -> ks. | O126: =Originál!O126 -> 0.052 | P126: 0.1 | Q126: 7 | R126: 3.36 | S126: 2.688
B127: 95. | C127: =Originál!C127 -> 0 | E127: 60 | F127: 60 | H127: 0 | I127: 47 | J127: =Originál!J127 -> 0.6 | K127: 28.2 | L127: =Originál!L127 -> ks. | O127: =Originál!O127 -> 0.37 | P127: 0.6 | Q127: 28.2 | R127: 10.81 | S127: 8.648
B128: 96. | C128: =Originál!C128 -> 0 | E128: 0 | F128: 0 | H128: 0 | I128: 3 | J128: =Originál!J128 -> 0.9 | K128: 2.7 | L128: =Originál!L128 -> ks. | O128: =Originál!O128 -> 0.54 | P128: 0.9 | Q128: 2.7 | R128: 1.08 | S128: 0.864
B129: 97. | C129: =Originál!C129 -> 0 | E129: 0 | F129: 0 | H129: 0 | I129: -35 | J129: =Originál!J129 -> 0.7 | K129: -24.5 | L129: =Originál!L129 -> ks. | O129: =Originál!O129 -> 0.3 | P129: 0.7 | Q129: -24.5 | R129: -14 | S129: -11.2
B130: 98. | C130: =Originál!C130 -> 0 | E130: 0 | F130: 0 | H130: 0 | I130: 8 | J130: =Originál!J130 -> 0.5 | K130: 4 | L130: =Originál!L130 -> ks. | O130: =Originál!O130 -> 0.27 | P130: 0.5 | Q130: 4 | R130: 1.84 | S130: 1.472
B131: 99. | C131: =Originál!C131 -> 0 | E131: 0 | F131: 0 | H131: 0 | I131: 0 | J131: =Originál!J131 -> 0.6 | K131: 0 | L131: =Originál!L131 -> ks. | O131: =Originál!O131 -> 0.32 | P131: 0.6 | Q131: 0 | R131: 0 | S131: 0
B132: 100. | C132: =Originál!C132 -> 0 | E132: 0 | F132: 0 | H132: 0 | I132: 0 | J132: =Originál!J132 -> 0 | K132: 0 | L132: =Originál!L132 -> 0 | O132: =Originál!O132 -> 0 | P132: 0 | Q132: 0 | R132: 0 | S132: 0
B133: 101. | C133: =Originál!C133 -> 0 | E133: 0 | F133: 0 | G133: 0 | H133: 0 | I133: 0 | J133: =Originál!J133 -> 0 | K133: 0 | L133: =Originál!L133 -> 0 | O133: =Originál!O133 -> 0 | P133: 0 | Q133: 0 | R133: 0 | S133: 0
B134: 102. | C134: =Originál!C134 -> 0 | E134: 0 | F134: 0 | G134: 0 | H134: 0 | I134: 0 | J134: =Originál!J134 -> 0 | K134: 0 | L134: =Originál!L134 -> 0 | O134: =Originál!O134 -> 0 | P134: 0 | Q134: 0 | R134: 0 | S134: 0
B135: 103. | C135: =Originál!C135 -> 0 | E135: 0 | F135: 0 | G135: 0 | H135: 0 | I135: 0 | J135: =Originál!J135 -> 0 | K135: 0 | L135: =Originál!L135 -> 0 | O135: =Originál!O135 -> 0 | P135: 0 | Q135: 0 | R135: 0 | S135: 0
D137: =SUM(D110:D135) -> 0 | G137: =SUM(G110:G135) -> 0 | J137: Celkom: | K137: =SUM(K110:K135) -> 133.2 | P137: Celkom: | Q137: =SUM(Q110:Q135) -> 133.2 | R137: =SUM(R110:R135) -> 54.58 | S137: =SUM(S110:S135) -> 43.664
Q139: Tržba | R139: Zisk | S139: Zisk po zdanený
I141: Strana 1: | J141: =K53 -> 2654.42 | P141: Strana 1 | Q141: =Q53 -> 2654.42 | R141: =R53 -> 1410.234 | S141: =S53 -> 1128.1872
I142: Strana 2: | J142: =K103 -> 854.7857143 | P142: Strana 2 | Q142: =Q103 -> 854.7857143 | R142: =R103 -> 322.0476857 | S142: =S103 -> 257.6381486
I143: Strana 3: | J143: =K137 -> 133.2 | P143: Strana 3 | Q143: =Q137 -> 133.2 | R143: =R137 -> 54.58 | S143: =S137 -> 43.664
F145: =SUM(F141:F143) -> 0 | I145: Spolu: | J145: =SUM(J141:J143) -> 3642.405714 | P145: Spolu: | Q145: =SUM(Q141:Q143) -> 3642.405714 | R145: =SUM(R141:R143) -> 1786.861686 | S145: =SUM(S141:S143) -> 1429.489349
I148: Spolu : | J148: =J145-F145 -> 3642.405714

Sheet Sklad
B1: Evidencia skladu 2018
B3: Názov tovaru | C3: Príjem | D3: Sklad | E3: Predajňa | F3: Spolu | H3: Názov tovaru | I3: Príjem | J3: Sklad | K3: Predajňa | L3: Spolu
B4: =Originál!C16 -> aaa | H4: =Originál!C77 -> 0
B5: =Originál!C17 -> sss | H5: =Originál!C78 -> 0
B6: =Originál!C18 -> dddd | H6: =Originál!C79 -> 0
B7: =Originál!C20 -> ref | H7: =Originál!C80 -> 0
B8: =Originál!C21 -> erfer | H8: =Originál!C81 -> 0
B9: =Originál!C22 -> erferf | H9: =Originál!C82 -> 0
B10: =Originál!C23 -> erferf | H10: =Originál!C83 -> 0
B11: =Originál!C24 -> ergfer | H11: =Originál!C84 -> 0
B12: =Originál!C25 -> rgerg | H12: =Originál!C85 -> 0
B13: =Originál!C26 -> hzh | H13: =Originál!C86 -> 0
B14: =Originál!C27 -> zthtz | H14: =Originál!C87 -> 0
B15: =Originál!C28 -> 0 | H15: =Originál!C88 -> 0
B16: =Originál!C29 -> 0 | H16: =Originál!C89 -> 0
B17: =Originál!C30 -> 0 | H17: =Originál!C90 -> 0
B18: =Originál!C31 -> 0 | H18: =Originál!C91 -> 0
B19: =Originál!C32 -> 0 | H19: =Originál!C92 -> 0
B20: =Originál!C33 -> 0 | H20: =Originál!C93 -> 0
B21: =Originál!C34 -> 0 | H21: =Originál!C94 -> 0
B22: =Originál!C35 -> 0 | H22: =Originál!C95 -> 0
B23: =Originál!C36 -> 0 | H23: =Originál!C96 -> 0
B24: =Originál!C37 -> 0 | H24: =Originál!C97 -> 0
B25: =Originál!C38 -> 0 | H25: =Originál!C98 -> 0
B26: =Originál!C39 -> 0 | H26: =Originál!C110 -> 0
B27: =Originál!C40 -> 0 | H27: =Originál!C111 -> 0
B28: =Originál!C41 -> 0 | H28: =Originál!C112 -> 0
B29: =Originál!C42 -> 0 | H29: =Originál!C113 -> 0
B30: =Originál!C43 -> 0 | H30: =Originál!C114 -> 0
B31: =Originál!C44 -> 0 | H31: =Originál!C115 -> 0
B32: =Originál!C45 -> 0 | H32: =Originál!C116 -> 0
B33: =Originál!C46 -> 0 | H33: =Originál!C117 -> 0
B34: =Originál!C47 -> 0 | H34: =Originál!C118 -> 0
B35: =Originál!C48 -> 0 | H35: =Originál!C119 -> 0
B36: =Originál!C49 -> 0 | H36: =Originál!C120 -> 0
B37: Captain Morgen | H37: =Originál!C121 -> 0
B38: =Originál!C61 -> 0 | H38: =Originál!C122 -> 0
B39: =Originál!C62 -> 0 | H39: =Originál!C123 -> 0
B40: =Originál!C63 -> 0 | H40: =Originál!C124 -> 0
B41: =Originál!C64 -> 0 | H41: =Originál!C125 -> 0
B42: =Originál!C65 -> 0 | H42: =Originál!C126 -> 0
B43: =Originál!C66 -> 0 | H43: =Originál!C127 -> 0
B44: =Originál!C67 -> 0 | H44: =Originál!C128 -> 0
B45: =Originál!C68 -> 0 | H45: =Originál!C129 -> 0
B46: =Originál!C69 -> 0 | H46: =Originál!C130 -> 0
B47: =Originál!C70 -> 0 | H47: =Originál!C131 -> 0
B48: =Originál!C71 -> 0 | H48: =Originál!C132 -> 0
B49: =Originál!C72 -> 0 | H49: =Originál!C133 -> 0
B50: =Originál!C73 -> 0 | H50: =Originál!C134 -> 0
B51: =Originál!C74 -> 0 | H51: =Originál!C135 -> 0
B52: =Originál!C75 -> 0 | H52: =Originál!C136 -> 0
B53: Výdavky: Stávková: Hotovosť:

Sheet 0
C1: Vyučtovanie výčapu 2018 | O1: Denný sumár
G2: Meno: | N2: Juniorka | O2: Meno: | P2: =I2 -> 0
G3: Dátum: | J3: /2018 | N3: Šipulová | O3: Dátum: | P3: =I3 -> 0 | Q3: /2018
C13: Strana 1: | O13: Strana 1:
B14: P.Č. | C14: Názov tovaru | D14: Poč. stav | E14: Denný príjem | F14: Spolu | G14: Zostatok v sklade | I14: Denný predaj | J14: Cena € | K14: Suma celkom € | L14: J.M | O14: Nákupná cena | P14: Predajná cena | Q14: Tržba | R14: Zisk | S14: Zisk po zdanení | U14: Zostatok v krčme | V14: Suma tovaru
B16: 1. | C16: aaa | D16: 5 | F16: =D16+E16 -> 5 | G16: 4 | I16: =D16+E16-G16 -> 1 | J16: 2 | K16: =I16*J16 -> 2 | L16: l. | O16: 1.032 | P16: =J16 -> 2 | Q16: =I16*J16 -> 2 | R16: =(P16-O16)*I16 -> 0.968 | S16: =R16*0.8 -> 0.7744 | U16: =G16 -> 4 | V16: =U16*O16 -> 4.128
B17: 2. | C17: sss | D17: 10 | F17: 10 | G17: 9 | I17: 1 | J17: 2 | K17: =I17*J17 -> 2 | L17: l. | O17: 0.493 | P17: =J17 -> 2 | Q17: =I17*J17 -> 2 | R17: =(P17-O17)*I17 -> 1.507 | S17: =R17*0.8 -> 1.2056 | U17: =G17 -> 9 | V17: =U17*O17 -> 4.437
B18: 3. | C18: dddd | D18: 1 | F18: 1 | G18: 1 | I18: 0 | J18: 2.8 | K18: 0 | L18: l. | O18: 1.52 | P18: 2.8 | Q18: 0 | R18: =(P18-O18)*I18 -> 0 | S18: 0 | U18: 1 | V18: 1.52
B19: 4. | F19: 0 | I19: 0 | K19: 0 | P19: 0 | Q19: 0 | R19: 0 | S19: 0 | U19: 0 | V19: 0
B20: 5. | C20: ref | D20: 22 | F20: 22 | G20: 21 | I20: 1 | J20: 0.8 | K20: 0.8 | L20: ks. | O20: 0.41 | P20: 0.8 | Q20: 0.8 | R20: 0.39 | S20: 0.312 | U20: 21 | V20: 8.61
B21: 6. | C21: erfer | D21: 55 | F21: 55 | G21: 51 | I21: 4 | J21: 0.9 | K21: 3.6 | L21: ks. | O21: 0.47 | P21: 0.9 | Q21: 3.6 | R21: 1.72 | S21: 1.376 | U21: 51 | V21: 23.97
B22: 7. | C22: erferf | D22: 888 | F22: 888 | G22: 758 | I22: 130 | J22: 1.2 | K22: 156 | L22: ks. | O22: 0.64 | P22: 1.2 | Q22: 156 | R22: 72.8 | S22: 58.24 | U22: 758 | V22: 485.12
B23: 8. | C23: erferf | D23: 44 | F23: 44 | G23: 40 | I23: 4 | J23: 0.9 | K23: 3.6 | L23: ks. | O23: 0.49 | P23: 0.9 | Q23: 3.6 | R23: 1.64 | S23: 1.312 | U23: 40 | V23: 19.6
B24: 9. | C24: ergfer | D24: 19 | F24: 19 | G24: 14 | I24: 5 | J24: 1.3 | K24: 6.5 | L24: ks. | O24: 0.93 | P24: 1.3 | Q24: 6.5 | R24: 1.85 | S24: 1.48 | U24: 14 | V24: 13.02
B25: 10. | C25: rgerg | D25: 59 | F25: 59 | G25: 59 | I25: 0 | J25: 1 | K25: 0 | L25: ks. | O25: 0.77 | P25: 1 | Q25: 0 | R25: 0 | S25: 0 | U25: 59 | V25: 45.43
B26: 11. | C26: hzh | D26: 54 | F26: 54 | G26: 54 | I26: 0 | J26: 0.9 | K26: 0 | L26: ks. | O26: 0.49 | P26: 0.9 | Q26: 0 | R26: 0 | S26: 0 | U26: 54 | V26: 26.46
B27: 12. | C27: zthtz | D27: 15 | F27: 15 | G27: 10 | I27: 5 | J27: 1 | K27: 5 | L27: ks. | O27: 0.42 | P27: 1 | Q27: 5 | R27: 2.9 | S27: 2.32 | U27: 10 | V27: 4.2
B28: 13. | F28: 0 | I28: 0 | J28: 1.2 | K28: 0 | L28: ks. | O28: 0.75 | P28: 1.2 | Q28: 0 | R28: 0 | S28: 0 | U28: 0 | V28: 0
B29: 14. | F29: 0 | I29: 0 | K29: 0 | P29: 0 | Q29: 0 | R29: 0 | S29: 0 | U29: 0 | V29: 0
B30: 15. | F30: 0 | I30: 0 | J30: 3 | K30: 0 | L30: l. | O30: 1.29 | P30: 3 | Q30: 0 | R30: 0 | S30: 0 | U30: 0 | V30: 0
B31: 16. | F31: 0 | I31: 0 | J31: 3 | K31: 0 | L31: l. | O31: 1.29 | P31: 3 | Q31: 0 | R31: 0 | S31: 0 | U31: 0 | V31: 0
B32: 17. | F32: 0 | I32: 0 | K32: 0 | P32: 0 | Q32: 0 | R32: 0 | S32: 0 | U32: 0 | V32: 0
B33: 18. | F33: 0 | I33: 0 | J33: 12 | K33: 0 | L33: l. | O33: 6.35 | P33: 12 | Q33: 0 | R33: 0 | S33: 0 | U33: 0 | V33: 0
B34: 19. | F34: 0 | I34: 0 | J34: 12 | K34: 0 | L34: l. | O34: 6.35 | P34: 12 | Q34: 0 | R34: 0 | S34: 0 | U34: 0 | V34: 0
B35: 20. | F35: 0 | I35: 0 | J35: 14 | K35: 0 | L35: l. | O35: 5.83 | P35: 14 | Q35: 0 | R35: 0 | S35: 0 | U35: 0 | V35: 0
B36: 21. | F36: 0 | I36: 0 | J36: 12 | K36: 0 | L36: l. | O36: 5.78 | P36: 12 | Q36: 0 | R36: 0 | S36: 0 | U36: 0 | V36: 0
B37: 22. | F37: 0 | I37: 0 | J37: 14 | K37: 0 | L37: l. | O37: 7.1 | P37: 14 | Q37: 0 | R37: 0 | S37: 0 | U37: 0 | V37: 0
B38: 23. | F38: 0 | I38: 0 | J38: 14 | K38: 0 | L38: l. | O38: 5.74 | P38: 14 | Q38: 0 | R38: 0 | S38: 0 | U38: 0 | V38: 0
B39: 24. | F39: 0 | I39: 0 | J39: 12 | K39: 0 | L39: l. | O39: 6.17 | P39: 12 | Q39: 0 | R39: 0 | S39: 0 | U39: 0 | V39: 0
B40: 25. | F40: 0 | I40: 0 | J40: 12 | K40: 0 | L40: l. | O40: 4.92 | P40: 12 | Q40: 0 | R40: 0 | S40: 0 | U40: 0 | V40: 0
B41: 26. | F41: 0 | I41: 0 | J41: 14 | K41: 0 | L41: l. | O41: 4.38 | P41: 14 | Q41: 0 | R41: 0 | S41: 0 | U41: 0 | V41: 0
B42: 27. | F42: 0 | I42: 0 | J42: 20 | K42: 0 | L42: l. | O42: 10.8 | P42: 20 | Q42: 0 | R42: 0 | S42: 0 | U42: 0 | V42: 0
B43: 28. | F43: 0 | I43: 0 | J43: 20 | K43: 0 | L43: l. | O43: 9.69 | P43: 20 | Q43: 0 | R43: 0 | S43: 0 | U43: 0 | V43: 0
B44: 29. | F44: 0 | I44: 0 | J44: 14 | K44: 0 | L44: l. | O44: 7.15 | P44: 14 | Q44: 0 | R44: 0 | S44: 0 | U44: 0 | V44: 0
B45: 30. | F45: 0 | I45: 0 | J45: 24 | K45: 0 | L45: l. | O45: 16.91 | P45: 24 | Q45: 0 | R45: 0 | S45: 0 | U45: 0 | V45: 0
B46: 31. | F46: 0 | I46: 0 | J46: 20 | K46: 0 | L46: l. | O46: 5.998 | P46: 20 | Q46: 0 | R46: 0 | S46: 0 | U46: 0 | V46: 0
B47: 32. | F47: 0 | I47: 0 | J47: 20 | K47: 0 | L47: l. | O47: 9.69 | P47: 20 | Q47: 0 | R47: 0 | S47: 0 | U47: 0 | V47: 0
B48: 33. | F48: 0 | I48: 0 | J48: 12 | K48: 0 | L48: l. | O48: 5.08 | P48: 12 | Q48: 0 | R48: 0 | S48: 0 | U48: 0 | V48: 0
B49: 34. | F49: 0 | I49: 0 | J49: 18 | K49: 0 | L49: l. | O49: 4.9 | P49: 18 | Q49: 0 | R49: 0 | S49: 0 | U49: 0 | V49: 0
B50: 35. | F50: 0 | I50: 0 | J50: 24 | K50: 0 | L50: l. | O50: 11.45 | P50: 24 | Q50: 0 | R50: 0 | S50: 0 | U50: 0 | V50: 0
B51: 36. | F51: 0 | I51: 0 | K51: 0 | P51: 0 | Q51: 0 | R51: 0 | S51: 0 | U51: 0 | V51: 0
P52: 0
D53: =SUM(D16:D51) -> 1172 | G53: =SUM(G16:G51) -> 1021 | J53: Celkom: | K53: =SUM(K16:K51) -> 179.5 | P53: Celkom: | Q53: =SUM(Q16:Q51) -> 179.5 | R53: =SUM(R16:R51) -> 83.775 | S53: =SUM(S16:S51) -> 67.02 | U53: Za tovar: | V53: =SUM(V16:V51) -> 636.495
C58: Strana 2: | O58: Strana 2:
B59: P.Č. | C59: Názov tovaru | D59: Poč. stav | E59: Denný príjem | F59: Spolu | G59: Zostatok v sklade | I59: Denný predaj | J59: Cena € | K59: Suma celkom € | O59: Nákupná cena | P59: Predajná cena | Q59: Tržba | R59: Zisk | S59: Zisk po zdanení | U59: Zostatok v krčme | V59: Suma tovaru
B61: 37. | F61: =D61+E61 -> 0 | I61: =D61+E61-G61 -> 0 | J61: 1.1 | K61: =I61*J61 -> 0 | L61: ks. | O61: 0.78 | P61: =J61 -> 1.1 | Q61: =I61*J61 -> 0 | R61: =(P61-O61)*I61 -> 0 | S61: =R61*0.8 -> 0 | U61: =G61 -> 0 | V61: =U61*O61 -> 0
B62: 38. | F62: =D62+E62 -> 0 | I62: =D62+E62-G62 -> 0 | J62: 2 | K62: =I62*J62 -> 0 | L62: ks. | O62: 0.726 | P62: =J62 -> 2 | Q62: =I62*J62 -> 0 | R62: =(P62-O62)*I62 -> 0 | S62: =R62*0.8 -> 0 | U62: =G62 -> 0 | V62: =U62*O62 -> 0
B63: 39. | F63: 0 | I63: 0 | J63: 0.9 | K63: 0 | L63: ks. | O63: 0.528 | P63: 0.9 | Q63: 0 | R63: =(P63-O63)*I63 -> 0 | S63: 0 | U63: 0 | V63: 0
B64: 40. | F64: 0 | I64: 0 | J64: 1.1 | K64: 0 | L64: ks. | O64: 0.49 | P64: 1.1 | Q64: 0 | R64: 0 | S64: 0 | U64: 0 | V64: 0
B65: 41. | F65: 0 | I65: 0 | J65: 0.5 | K65: 0 | L65: ks. | O65: 0.2 | P65: 0.5 | Q65: 0 | R65: 0 | S65: 0 | U65: 0 | V65: 0
B66: 42. | F66: 0 | I66: 0 | J66: 1.8 | K66: 0 | L66: ks. | O66: 0.25 | P66: 1.8 | Q66: 0 | R66: 0 | S66: 0 | U66: 0 | V66: 0
B67: 43. | F67: 0 | I67: 0 | J67: 0.5 | K67: 0 | L67: ks. | O67: 0.11 | P67: 0.5 | Q67: 0 | R67: 0 | S67: 0 | U67: 0 | V67: 0
B68: 44. | D68: 0 | F68: 0 | G68: 0 | I68: 0 | J68: 1.5 | K68: 0 | L68: l. | O68: 0.23 | P68: 1.5 | Q68: 0 | R68: 0 | S68: 0 | U68: 0 | V68: 0
B69: 45. | F69: 0 | I69: 0 | J69: 1 | K69: 0 | L69: ks. | O69: 0.46 | P69: 1 | Q69: 0 | R69: 0 | S69: 0 | U69: 0 | V69: 0
B70: 46. | F70: 0 | I70: 0 | J70: 3 | K70: 0 | L70: ks. | O70: 1.188 | P70: 3 | Q70: 0 | R70: 0 | S70: 0 | U70: 0 | V70: 0
B71: 47. | F71: 0 | I71: 0 | J71: 1.1 | K71: 0 | L71: l. | O71: 0.33 | P71: 1.1 | Q71: 0 | R71: 0 | S71: 0 | U71: 0 | V71: 0
B72: 48. | F72: 0 | I72: 0 | J72: 0.8 | K72: 0 | L72: ks. | O72: 0.32 | P72: 0.8 | Q72: 0 | R72: 0 | S72: 0 | U72: 0 | V72: 0
B73: 49. | F73: 0 | I73: 0 | J73: 1.1 | K73: 0 | L73: ks. | O73: 0.624 | P73: 1.1 | Q73: 0 | R73: 0 | S73: 0 | U73: 0 | V73: 0
B74: 50. | F74: 0 | I74: 0 | J74: 1.1 | K74: 0 | L74: ks. | O74: 0.504 | P74: 1.1 | Q74: 0 | R74: 0 | S74: 0 | U74: 0 | V74: 0
B75: 51. | F75: 0 | I75: 0 | J75: 1.2 | K75: 0 | L75: ks. | O75: 0.64 | P75: 1.2 | Q75: 0 | R75: 0 | S75: 0 | U75: 0 | V75: 0
B76: 52. | F76: 0 | I76: 0 | K76: 0 | P76: 0 | Q76: 0 | R76: 0 | S76: 0 | U76: 0 | V76: 0
B77: 53. | F77: 0 | I77: =(D77+E77-G77)/7 -> 0 | J77: 0.5 | K77: 0 | L77: gr. | O77: 0.034 | P77: 0.5 | Q77: =K77 -> 0 | R77: 0 | S77: 0 | U77: 0 | V77: 0
B78: 54. | F78: 0 | I78: 0 | J78: 0.5 | K78: 0 | L78: ks. | O78: 0.14 | P78: 0.5 | Q78: 0 | R78: 0 | S78: 0 | U78: 0 | V78: 0
B79: 55. | F79: 0 | I79: 0 | J79: 0.5 | K79: =I79*J79 -> 0 | L79: ks. | O79: 0.058 | P79: 0.5 | Q79: =I79*J79 -> 0 | R79: 0 | S79: 0 | U79: 0 | V79: =U79*O80 -> 0
B80: 56. | F80: 0 | I80: 0 | J80: 0.1 | K80: =I80*J80 -> 0 | L80: ks. | O80: 0.036 | P80: 0.1 | Q80: =I80*J80 -> 0 | R80: 0 | S80: 0 | U80: 0 | V80: =U80*O81 -> 0
B81: 57. | F81: 0 | I81: 0 | J81: 0.05 | K81: =I81*J81 -> 0 | L81: ks. | O81: 0.08 | P81: 0.05 | Q81: =I81*J81 -> 0 | R81: 0 | S81: 0 | U81: 0 | V81: =U81*O82 -> 0
B82: 58. | F82: 0 | I82: 0 | K82: =I82*J82 -> 0 | P82: 0 | Q82: =I82*J82 -> 0 | R82: 0 | S82: 0 | U82: 0 | V82: =U82*O83 -> 0
B83: 59. | F83: 0 | I83: 0 | K83: 0 | P83: 0 | Q83: 0 | R83: 0 | S83: 0 | U83: 0 | V83: 0
B84: 60. | F84: 0 | I84: 0 | J84: 3.2 | K84: 0 | L84: ks. | O84: 3.04 | P84: 3.2 | Q84: 0 | R84: 0 | S84: 0 | U84: 0 | V84: 0
B85: 61. | F85: 0 | I85: 0 | J85: 3.3 | K85: 0 | L85: ks. | O85: 3.3 | P85: 3.3 | Q85: 0 | R85: 0 | S85: 0 | U85: 0 | V85: 0
B86: 62. | F86: 0 | I86: 0 | J86: 3.4 | K86: 0 | L86: ks. | O86: 3.32 | P86: 3.4 | Q86: 0 | R86: 0 | S86: 0 | U86: 0 | V86: 0
B87: 63. | F87: 0 | I87: 0 | J87: 3.6 | K87: 0 | L87: ks. | O87: 2.95 | P87: 3.6 | Q87: 0 | R87: 0 | S87: 0 | U87: 0 | V87: 0
B88: 64. | F88: 0 | I88: 0 | J88: 3.3 | K88: 0 | L88: ks. | O88: 3.04 | P88: 3.3 | Q88: 0 | R88: 0 | S88: 0 | U88: 0 | V88: 0
B89: 65. | F89: 0 | I89: 0 | J89: 3.2 | K89: 0 | L89: ks. | O89: 3.04 | P89: 3.2 | Q89: 0 | R89: 0 | S89: 0 | U89: 0 | V89: 0
B90: 66. | F90: 0 | I90: 0 | J90: 3.1 | K90: 0 | L90: ks. | O90: 2.94 | P90: 3.1 | Q90: 0 | R90: 0 | S90: 0 | U90: 0 | V90: 0
B91: 67. | F91: 0 | I91: 0 | J91: 3.2 | K91: 0 | L91: ks. | O91: 3.04 | P91: 3.2 | Q91: 0 | R91: 0 | S91: 0 | U91: 0 | V91: 0
B92: 68. | F92: 0 | I92: 0 | J92: 3.1 | K92: 0 | L92: ks. | P92: 3.1 | Q92: 0 | R92: 0 | S92: 0 | U92: 0 | V92: 0
B93: 69. | F93: 0 | I93: 0 | J93: 3.3 | K93: 0 | L93: ks. | P93: 3.3 | Q93: 0 | R93: 0 | S93: 0 | U93: 0 | V93: 0
B94: 70. | F94: 0 | I94: 0 | K94: 0 | P94: 0 | Q94: 0 | R94: 0 | S94: 0 | U94: 0 | V94: 0
B95: 71. | F95: 0 | I95: 0 | K95: 0 | P95: 0 | Q95: 0 | R95: 0 | S95: 0 | U95: 0 | V95: 0
B96: 72. | F96: 0 | I96: 0 | J96: 0.2 | K96: 0 | L96: ks. | O96: 0.089 | P96: 0.2 | Q96: 0 | R96: 0 | S96: 0 | U96: 0 | V96: 0
B97: 73. | F97: 0 | I97: 0 | J97: 0.5 | K97: 0 | L97: ks. | O97: 0.17 | P97: 0.5 | Q97: 0 | R97: 0 | S97: 0 | U97: 0 | V97: 0
B98: 74. | F98: 0 | I98: 0 | J98: 0.1 | K98: 0 | L98: ks. | O98: 0.04 | P98: 0.1 | Q98: 0 | R98: 0 | S98: 0 | U98: 0 | V98: 0
B99: 75. | F99: 0 | I99: 0 | K99: 0 | P99: 0 | Q99: 0 | R99: 0 | S99: 0 | U99: 0 | V99: 0
B100: 76. | F100: 0 | I100: 0 | K100: 0 | P100: 0 | Q100: 0 | R100: 0 | S100: 0 | U100: 0 | V100: 0
B101: 77. | F101: 0 | I101: 0 | K101: 0 | P101: 0 | Q101: 0 | R101: 0 | S101: 0 | U101: 0 | V101: 0
D103: =SUM(D61:D101) -> 0 | G103: =SUM(G61:G101) -> 0 | J103: Celkom : | K103: =SUM(K61:K101) -> 0 | P103: Celkom: | Q103: =SUM(Q61:Q101) -> 0 | R103: =SUM(R61:R101) -> 0 | S103: =SUM(S61:S101) -> 0 | U103: Za tovar: | V103: =SUM(V61:V101) -> 0
C107: Strana 3: | O107: Strana 3:
B108: P.Č. | C108: Názov tovaru | D108: Poč. stav | E108: Denný príjem | F108: Spolu | G108: Zostatok v sklade | I108: Denný predaj | J108: Cena € | K108: Suma celkom € | O108: Nákupná cena | P108: Predajná cena | Q108: Tržba | R108: Zisk | S108: Zisk po zdanení | U108: Zostatok v krčme | V108: Suma tovaru
B110: 78. | F110: =D110+E110 -> 0 | I110: =D110+E110-G110 -> 0 | J110: 1.2 | K110: =I110*J110 -> 0 | L110: ks. | O110: 0.73 | P110: =J110 -> 1.2 | Q110: =I110*J110 -> 0 | R110: =(P110-O110)*I110 -> 0 | S110: =R110*0.8 -> 0 | U110: =G110 -> 0 | V110: =U110*O110 -> 0
B111: 79. | F111: =D111+E111 -> 0 | I111: =D111+E111-G111 -> 0 | J111: 0.6 | K111: =I111*J111 -> 0 | L111: ks. | O111: 0.29 | P111: =J111 -> 0.6 | Q111: =I111*J111 -> 0 | R111: =(P111-O111)*I111 -> 0 | S111: =R111*0.8 -> 0 | U111: =G111 -> 0 | V111: =U111*O111 -> 0
B112: 80. | F112: 0 | I112: 0 | J112: 0.6 | K112: 0 | L112: ks. | O112: 0.28 | P112: 0.6 | Q112: 0 | R112: =(P112-O112)*I112 -> 0 | S112: 0 | U112: 0 | V112: 0
B113: 81. | F113: 0 | I113: 0 | J113: 1.5 | K113: 0 | L113: ks. | O113: 0.9 | P113: 1.5 | Q113: 0 | R113: 0 | S113: 0 | U113: 0 | V113: 0
B114: 82. | F114: 0 | I114: 0 | J114: 0.6 | K114: 0 | L114: ks. | O114: 0.32 | P114: 0.6 | Q114: 0 | R114: 0 | S114: 0 | U114: 0 | V114: 0
B115: 83. | F115: 0 | I115: 0 | J115: 0.6 | K115: 0 | L115: ks. | O115: 0.26 | P115: 0.6 | Q115: 0 | R115: 0 | S115: 0 | U115: 0 | V115: 0
B116: 84. | F116: 0 | I116: 0 | J116: 0.6 | K116: 0 | L116: ks. | O116: 0.4 | P116: 0.6 | Q116: 0 | R116: 0 | S116: 0 | U116: 0 | V116: 0
B117: 85. | F117: 0 | I117: 0 | K117: 0 | L117: ks. | P117: 0 | Q117: 0 | R117: 0 | S117: 0 | U117: 0 | V117: 0
B118: 86. | F118: 0 | I118: 0 | J118: 0.6 | K118: 0 | L118: ks. | O118: 0.33 | P118: 0.6 | Q118: 0 | R118: 0 | S118: 0 | U118: 0 | V118: 0
B119: 87. | F119: 0 | I119: 0 | J119: 0.3 | K119: 0 | L119: ks. | O119: 0.1 | P119: 0.3 | Q119: 0 | R119: 0 | S119: 0 | U119: 0 | V119: 0
B120: 88. | F120: 0 | I120: 0 | J120: 0.8 | K120: 0 | L120: ks. | O120: 0.5 | P120: 0.8 | Q120: 0 | R120: 0 | S120: 0 | U120: 0 | V120: 0
B121: 89. | F121: 0 | I121: 0 | J121: 2.6 | K121: 0 | L121: ks. | O121: 1.62 | P121: 2.6 | Q121: 0 | R121: 0 | S121: 0 | U121: 0 | V121: 0
B122: 90. | F122: 0 | I122: 0 | J122: 1.5 | K122: 0 | L122: ks. | O122: 0.73 | P122: 1.5 | Q122: 0 | R122: 0 | S122: 0 | U122: 0 | V122: 0
B123: 91. | F123: 0 | I123: 0 | J123: 0.5 | K123: 0 | L123: ks. | O123: 0.24 | P123: 0.5 | Q123: 0 | R123: 0 | S123: 0 | U123: 0 | V123: 0
B124: 92. | F124: 0 | I124: 0 | J124: 0.8 | K124: 0 | L124: ks. | O124: 0.33 | P124: 0.8 | Q124: 0 | R124: 0 | S124: 0 | U124: 0 | V124: 0
B125: 93. | F125: 0 | I125: 0 | J125: 0.6 | K125: 0 | L125: ks. | O125: 0.3 | P125: 0.6 | Q125: 0 | R125: 0 | S125: 0 | U125: 0 | V125: 0
B126: 94. | F126: 0 | I126: 0 | J126: 0.1 | K126: 0 | L126: ks. | O126: 0.052 | P126: 0.1 | Q126: 0 | R126: 0 | S126: 0 | U126: 0 | V126: 0
B127: 95. | F127: 0 | I127: 0 | J127: 0.6 | K127: 0 | L127: ks. | O127: 0.37 | P127: 0.6 | Q127: 0 | R127: 0 | S127: 0 | U127: 0 | V127: 0
B128: 96. | F128: 0 | I128: 0 | J128: 0.9 | K128: 0 | L128: ks. | O128: 0.54 | P128: 0.9 | Q128: 0 | R128: 0 | S128: 0 | U128: 0 | V128: 0
B129: 97. | F129: 0 | I129: 0 | J129: 0.7 | K129: 0 | L129: ks. | O129: 0.3 | P129: 0.7 | Q129: 0 | R129: 0 | S129: 0 | U129: 0 | V129: 0
B130: 98. | F130: 0 | I130: 0 | J130: 0.5 | K130: 0 | L130: ks. | O130: 0.27 | P130: 0.5 | Q130: 0 | R130: 0 | S130: 0 | U130: 0 | V130: 0
B131: 99. | F131: 0 | I131: 0 | J131: 0.6 | K131: 0 | L131: ks. | O131: 0.32 | P131: 0.6 | Q131: 0 | R131: 0 | S131: 0 | U131: 0 | V131: 0
B132: 100. | F132: 0 | I132: 0 | K132: 0 | P132: 0 | Q132: 0 | R132: 0 | S132: 0 | U132: 0 | V132: 0
B133: 101. | F133: 0 | I133: 0 | K133: 0 | P133: 0 | Q133: 0 | R133: 0 | S133: 0 | U133: 0 | V133: 0
B134: 102. | F134: 0 | I134: 0 | K134: 0 | P134: 0 | Q134: 0 | R134: 0 | S134: 0 | U134: 0 | V134: 0
B135: 103. | F135: 0 | I135: 0 | K135: 0 | P135: 0 | Q135: 0 | R135: 0 | S135: 0 | U135: 0 | V135: 0
U136: 0 | V136: 0
D137: =SUM(D110:D135) -> 0 | G137: =SUM(G110:G135) -> 0 | J137: Celkom: | K137: =SUM(K110:K135) -> 0 | P137: Celkom: | Q137: =SUM(Q110:Q135) -> 0 | R137: =SUM(R110:R135) -> 0 | S137: =SUM(S110:S135) -> 0 | U137: Za tovar: | V137: =SUM(V110:V135) -> 0
Q139: Tržba | R139: Zisk | S139: Zisk po zdanený
D141: Stávková: | I141: Strana 1: | J141: =K53 -> 179.5 | P141: Strana 1 | Q141: =Q53 -> 179.5 | R141: =R53 -> 83.775 | S141: =S53 -> 67.02 | U141: Strana 1: | V141: =V53 -> 636.495
D142: Refil: | I142: Strana 2: | J142: =K103 -> 0 | P142: Strana 2 | Q142: =Q103 -> 0 | R142: =R103 -> 0 | S142: =S103 -> 0 | U142: Strana 2: | V142: =V103 -> 0
D143: Výdavky: | I143: Strana 3: | J143: =K137 -> 0 | P143: Strana 3 | Q143: =Q137 -> 0 | R143: =R137 -> 0 | S143: =S137 -> 0 | U143: Strana 3: | V143: =V137 -> 0
E145: Spolu: | F145: =SUM(F141:F143) -> 0 | I145: Spolu: | J145: =SUM(J141:J143) -> 179.5 | P145: Spolu: | Q145: =SUM(Q141:Q143) -> 179.5 | R145: =SUM(R141:R143) -> 83.775 | S145: =SUM(S141:S143) -> 67.02 | U145: Spolu: | V145: =SUM(V141:V143) -> 636.495
P147: Spolu: | Q147: =Q145-F145 -> 179.5
I148: Spolu : | J148: =J145-F145 -> 179.5
C150: Zostatok hotovosť:
C152: rozdiel: | D152: =D150-J148 -> -179.5

Sheet 1
C1: Vyučtovanie výčapu 2018 | O1: Denný sumár
G2: Meno: | N2: Juniorka | O2: Meno: | P2: =I2 -> 0
G3: Dátum: | J3: /2018 | N3: Šipulová | O3: Dátum: | P3: =I3 -> 0 | Q3: /2018
C13: Strana 1: | O13: Strana 1:
B14: P.Č. | C14: Názov tovaru | D14: Poč. stav | E14: Denný príjem | F14: Spolu | G14: Zostatok v sklade | I14: Denný predaj | J14: Cena € | K14: Suma celkom € | L14: J.M | O14: Nákupná cena | P14: Predajná cena | Q14: Tržba | R14: Zisk | S14: Zisk po zdanení | U14: Zostatok v krčme | V14: Suma tovaru
B16: 1. | C16: aaa | D16: 4 | E16: 5 | F16: =D16+E16 -> 9 | G16: 9 | I16: =D16+E16-G16 -> 0 | J16: 2 | K16: =I16*J16 -> 0 | L16: l. | O16: 1.032 | P16: =J16 -> 2 | Q16: =I16*J16 -> 0 | R16: =(P16-O16)*I16 -> 0 | S16: =R16*0.8 -> 0 | U16: =G16 -> 9 | V16: =U16*O16 -> 9.288
B17: 2. | C17: sss | D17: 9 | E17: 5 | F17: 14 | G17: 14 | I17: 0 | J17: 2 | K17: =I17*J17 -> 0 | L17: l. | O17: 0.493 | P17: =J17 -> 2 | Q17: =I17*J17 -> 0 | R17: =(P17-O17)*I17 -> 0 | S17: =R17*0.8 -> 0 | U17: =G17 -> 14 | V17: =U17*O17 -> 6.902
B18: 3. | C18: dddd | D18: 1 | E18: 5 | F18: 6 | G18: 5 | I18: 1 | J18: 2.8 | K18: 2.8 | L18: l. | O18: 1.52 | P18: 2.8 | Q18: 2.8 | R18: =(P18-O18)*I18 -> 1.28 | S18: 1.024 | U18: 5 | V18: 7.6
B19: 4. | F19: 0 | I19: 0 | K19: 0 | P19: 0 | Q19: 0 | R19: 0 | S19: 0 | U19: 0 | V19: 0
B20: 5. | C20: ref | D20: 21 | F20: 21 | G20: 19 | I20: 2 | J20: 0.8 | K20: 1.6 | L20: ks. | O20: 0.41 | P20: 0.8 | Q20: 1.6 | R20: 0.78 | S20: 0.624 | U20: 19 | V20: 7.79
B21: 6. | C21: erfer | D21: 51 | E21: 5 | F21: 56 | G21: 40 | I21: 16 | J21: 0.9 | K21: 14.4 | L21: ks. | O21: 0.47 | P21: 0.9 | Q21: 14.4 | R21: 6.88 | S21: 5.504 | U21: 40 | V21: 18.8
B22: 7. | C22: erferf | D22: 758 | E22: 25 | F22: 783 | G22: 458 | I22: 325 | J22: 1.2 | K22: 390 | L22: ks. | O22: 0.64 | P22: 1.2 | Q22: 390 | R22: 182 | S22: 145.6 | U22: 458 | V22: 293.12
B23: 8. | C23: erferf | D23: 40 | E23: 2 | F23: 42 | G23: 40 | I23: 2 | J23: 0.9 | K23: 1.8 | L23: ks. | O23: 0.49 | P23: 0.9 | Q23: 1.8 | R23: 0.82 | S23: 0.656 | U23: 40 | V23: 19.6
B24: 9. | C24: ergfer | D24: 14 | E24: 5 | F24: 19 | G24: 18 | I24: 1 | J24: 1.3 | K24: 1.3 | L24: ks. | O24: 0.93 | P24: 1.3 | Q24: 1.3 | R24: 0.37 | S24: 0.296 | U24: 18 | V24: 16.74
B25: 10. | C25: rgerg | D25: 59 | E25: 2 | F25: 61 | G25: 50 | I25: 11 | J25: 1 | K25: 11 | L25: ks. | O25: 0.77 | P25: 1 | Q25: 11 | R25: 2.53 | S25: 2.024 | U25: 50 | V25: 38.5
B26: 11. | C26: hzh | D26: 54 | F26: 54 | G26: 2 | I26: 52 | J26: 0.9 | K26: 46.8 | L26: ks. | O26: 0.49 | P26: 0.9 | Q26: 46.8 | R26: 21.32 | S26: 17.056 | U26: 2 | V26: 0.98
B27: 12. | C27: zthtz | D27: 10 | F27: 10 | G27: 8 | I27: 2 | J27: 1 | K27: 2 | L27: ks. | O27: 0.42 | P27: 1 | Q27: 2 | R27: 1.16 | S27: 0.928 | U27: 8 | V27: 3.36
B28: 13. | F28: 0 | I28: 0 | J28: 1.2 | K28: 0 | L28: ks. | O28: 0.75 | P28: 1.2 | Q28: 0 | R28: 0 | S28: 0 | U28: 0 | V28: 0
B29: 14. | F29: 0 | I29: 0 | K29: 0 | P29: 0 | Q29: 0 | R29: 0 | S29: 0 | U29: 0 | V29: 0
B30: 15. | F30: 0 | I30: 0 | J30: 3 | K30: 0 | L30: l. | O30: 1.29 | P30: 3 | Q30: 0 | R30: 0 | S30: 0 | U30: 0 | V30: 0
B31: 16. | F31: 0 | I31: 0 | J31: 3 | K31: 0 | L31: l. | O31: 1.29 | P31: 3 | Q31: 0 | R31: 0 | S31: 0 | U31: 0 | V31: 0
B32: 17. | F32: 0 | I32: 0 | K32: 0 | P32: 0 | Q32: 0 | R32: 0 | S32: 0 | U32: 0 | V32: 0
B33: 18. | F33: 0 | I33: 0 | J33: 12 | K33: 0 | L33: l. | O33: 6.35 | P33: 12 | Q33: 0 | R33: 0 | S33: 0 | U33: 0 | V33: 0
B34: 19. | F34: 0 | I34: 0 | J34: 12 | K34: 0 | L34: l. | O34: 6.35 | P34: 12 | Q34: 0 | R34: 0 | S34: 0 | U34: 0 | V34: 0
B35: 20. | F35: 0 | I35: 0 | J35: 14 | K35: 0 | L35: l. | O35: 5.83 | P35: 14 | Q35: 0 | R35: 0 | S35: 0 | U35: 0 | V35: 0
B36: 21. | F36: 0 | I36: 0 | J36: 12 | K36: 0 | L36: l. | O36: 5.78 | P36: 12 | Q36: 0 | R36: 0 | S36: 0 | U36: 0 | V36: 0
B37: 22. | F37: 0 | I37: 0 | J37: 14 | K37: 0 | L37: l. | O37: 7.1 | P37: 14 | Q37: 0 | R37: 0 | S37: 0 | U37: 0 | V37: 0
B38: 23. | F38: 0 | I38: 0 | J38: 14 | K38: 0 | L38: l. | O38: 5.74 | P38: 14 | Q38: 0 | R38: 0 | S38: 0 | U38: 0 | V38: 0
B39: 24. | F39: 0 | I39: 0 | J39: 12 | K39: 0 | L39: l. | O39: 6.17 | P39: 12 | Q39: 0 | R39: 0 | S39: 0 | U39: 0 | V39: 0
B40: 25. | F40: 0 | I40: 0 | J40: 12 | K40: 0 | L40: l. | O40: 4.92 | P40: 12 | Q40: 0 | R40: 0 | S40: 0 | U40: 0 | V40: 0
B41: 26. | F41: 0 | I41: 0 | J41: 14 | K41: 0 | L41: l. | O41: 4.38 | P41: 14 | Q41: 0 | R41: 0 | S41: 0 | U41: 0 | V41: 0
B42: 27. | F42: 0 | I42: 0 | J42: 20 | K42: 0 | L42: l. | O42: 10.8 | P42: 20 | Q42: 0 | R42: 0 | S42: 0 | U42: 0 | V42: 0
B43: 28. | F43: 0 | I43: 0 | J43: 20 | K43: 0 | L43: l. | O43: 9.69 | P43: 20 | Q43: 0 | R43: 0 | S43: 0 | U43: 0 | V43: 0
B44: 29. | F44: 0 | I44: 0 | J44: 14 | K44: 0 | L44: l. | O44: 7.15 | P44: 14 | Q44: 0 | R44: 0 | S44: 0 | U44: 0 | V44: 0
B45: 30. | F45: 0 | I45: 0 | J45: 24 | K45: 0 | L45: l. | O45: 16.91 | P45: 24 | Q45: 0 | R45: 0 | S45: 0 | U45: 0 | V45: 0
B46: 31. | F46: 0 | I46: 0 | J46: 20 | K46: 0 | L46: l. | O46: 5.998 | P46: 20 | Q46: 0 | R46: 0 | S46: 0 | U46: 0 | V46: 0
B47: 32. | F47: 0 | I47: 0 | J47: 20 | K47: 0 | L47: l. | O47: 9.69 | P47: 20 | Q47: 0 | R47: 0 | S47: 0 | U47: 0 | V47: 0
B48: 33. | F48: 0 | I48: 0 | J48: 12 | K48: 0 | L48: l. | O48: 5.08 | P48: 12 | Q48: 0 | R48: 0 | S48: 0 | U48: 0 | V48: 0
B49: 34. | F49: 0 | I49: 0 | J49: 18 | K49: 0 | L49: l. | O49: 4.9 | P49: 18 | Q49: 0 | R49: 0 | S49: 0 | U49: 0 | V49: 0
B50: 35. | F50: 0 | I50: 0 | J50: 24 | K50: 0 | L50: l. | O50: 11.45 | P50: 24 | Q50: 0 | R50: 0 | S50: 0 | U50: 0 | V50: 0
B51: 36. | F51: 0 | I51: 0 | K51: 0 | P51: 0 | Q51: 0 | R51: 0 | S51: 0 | U51: 0 | V51: 0
P52: 0
D53: =SUM(D16:D51) -> 1021 | G53: =SUM(G16:G51) -> 663 | J53: Celkom: | K53: =SUM(K16:K51) -> 471.7 | P53: Celkom: | Q53: =SUM(Q16:Q51) -> 471.7 | R53: =SUM(R16:R51) -> 217.14 | S53: =SUM(S16:S51) -> 173.712 | U53: Za tovar: | V53: =SUM(V16:V51) -> 422.68
C58: Strana 2: | O58: Strana 2:
B59: P.Č. | C59: Názov tovaru | D59: Poč. stav | E59: Denný príjem | F59: Spolu | G59: Zostatok v sklade | I59: Denný predaj | J59: Cena € | K59: Suma celkom € | O59: Nákupná cena | P59: Predajná cena | Q59: Tržba | R59: Zisk | S59: Zisk po zdanení | U59: Zostatok v krčme | V59: Suma tovaru
B61: 37. | F61: =D61+E61 -> 0 | I61: =D61+E61-G61 -> 0 | J61: 1.1 | K61: =I61*J61 -> 0 | L61: ks. | O61: 0.78 | P61: =J61 -> 1.1 | Q61: =I61*J61 -> 0 | R61: =(P61-O61)*I61 -> 0 | S61: =R61*0.8 -> 0 | U61: =G61 -> 0 | V61: =U61*O61 -> 0
B62: 38. | F62: =D62+E62 -> 0 | I62: =D62+E62-G62 -> 0 | J62: 2 | K62: =I62*J62 -> 0 | L62: ks. | O62: 0.726 | P62: =J62 -> 2 | Q62: =I62*J62 -> 0 | R62: =(P62-O62)*I62 -> 0 | S62: =R62*0.8 -> 0 | U62: =G62 -> 0 | V62: =U62*O62 -> 0
B63: 39. | F63: 0 | I63: 0 | J63: 0.9 | K63: 0 | L63: ks. | O63: 0.528 | P63: 0.9 | Q63: 0 | R63: =(P63-O63)*I63 -> 0 | S63: 0 | U63: 0 | V63: 0
B64: 40. | F64: 0 | I64: 0 | J64: 1.1 | K64: 0 | L64: ks. | O64: 0.49 | P64: 1.1 | Q64: 0 | R64: 0 | S64: 0 | U64: 0 | V64: 0
B65: 41. | F65: 0 | I65: 0 | J65: 0.5 | K65: 0 | L65: ks. | O65: 0.2 | P65: 0.5 | Q65: 0 | R65: 0 | S65: 0 | U65: 0 | V65: 0
B66: 42. | F66: 0 | I66: 0 | J66: 1.8 | K66: 0 | L66: ks. | O66: 0.25 | P66: 1.8 | Q66: 0 | R66: 0 | S66: 0 | U66: 0 | V66: 0
B67: 43. | F67: 0 | I67: 0 | J67: 0.5 | K67: 0 | L67: ks. | O67: 0.11 | P67: 0.5 | Q67: 0 | R67: 0 | S67: 0 | U67: 0 | V67: 0
B68: 44. | D68: 0 | F68: 0 | G68: 0 | I68: 0 | J68: 1.5 | K68: 0 | L68: l. | O68: 0.23 | P68: 1.5 | Q68: 0 | R68: 0 | S68: 0 | U68: 0 | V68: 0
B69: 45. | F69: 0 | I69: 0 | J69: 1 | K69: 0 | L69: ks. | O69: 0.46 | P69: 1 | Q69: 0 | R69: 0 | S69: 0 | U69: 0 | V69: 0
B70: 46. | F70: 0 | I70: 0 | J70: 3 | K70: 0 | L70: ks. | O70: 1.188 | P70: 3 | Q70: 0 | R70: 0 | S70: 0 | U70: 0 | V70: 0
B71: 47. | F71: 0 | I71: 0 | J71: 1.1 | K71: 0 | L71: l. | O71: 0.33 | P71: 1.1 | Q71: 0 | R71: 0 | S71: 0 | U71: 0 | V71: 0
B72: 48. | F72: 0 | I72: 0 | J72: 0.8 | K72: 0 | L72: ks. | O72: 0.32 | P72: 0.8 | Q72: 0 | R72: 0 | S72: 0 | U72: 0 | V72: 0
B73: 49. | F73: 0 | I73: 0 | J73: 1.1 | K73: 0 | L73: ks. | O73: 0.624 | P73: 1.1 | Q73: 0 | R73: 0 | S73: 0 | U73: 0 | V73: 0
B74: 50. | F74: 0 | I74: 0 | J74: 1.1 | K74: 0 | L74: ks. | O74: 0.504 | P74: 1.1 | Q74: 0 | R74: 0 | S74: 0 | U74: 0 | V74: 0
B75: 51. | F75: 0 | I75: 0 | J75: 1.2 | K75: 0 | L75: ks. | O75: 0.64 | P75: 1.2 | Q75: 0 | R75: 0 | S75: 0 | U75: 0 | V75: 0
B76: 52. | F76: 0 | I76: 0 | K76: 0 | P76: 0 | Q76: 0 | R76: 0 | S76: 0 | U76: 0 | V76: 0
B77: 53. | F77: 0 | I77: =(D77+E77-G77)/7 -> 0 | J77: 0.5 | K77: 0 | L77: gr. | O77: 0.034 | P77: 0.5 | Q77: =K77 -> 0 | R77: 0 | S77: 0 | U77: 0 | V77: 0
B78: 54. | F78: 0 | I78: 0 | J78: 0.5 | K78: 0 | L78: ks. | O78: 0.14 | P78: 0.5 | Q78: 0 | R78: 0 | S78: 0 | U78: 0 | V78: 0
B79: 55. | F79: 0 | I79: 0 | J79: 0.5 | K79: =I79*J79 -> 0 | L79: ks. | O79: 0.058 | P79: 0.5 | Q79: =I79*J79 -> 0 | R79: 0 | S79: 0 | U79: 0 | V79: =U79*O80 -> 0
B80: 56. | F80: 0 | I80: 0 | J80: 0.1 | K80: =I80*J80 -> 0 | L80: ks. | O80: 0.036 | P80: 0.1 | Q80: =I80*J80 -> 0 | R80: 0 | S80: 0 | U80: 0 | V80: =U80*O81 -> 0
B81: 57. | F81: 0 | I81: 0 | J81: 0.05 | K81: =I81*J81 -> 0 | L81: ks. | O81: 0.08 | P81: 0.05 | Q81: =I81*J81 -> 0 | R81: 0 | S81: 0 | U81: 0 | V81: =U81*O82 -> 0
B82: 58. | F82: 0 | I82: 0 | K82: =I82*J82 -> 0 | P82: 0 | Q82: =I82*J82 -> 0 | R82: 0 | S82: 0 | U82: 0 | V82: =U82*O83 -> 0
B83: 59. | F83: 0 | I83: 0 | K83: 0 | P83: 0 | Q83: 0 | R83: 0 | S83: 0 | U83: 0 | V83: 0
B84: 60. | F84: 0 | I84: 0 | J84: 3.2 | K84: 0 | L84: ks. | O84: 3.04 | P84: 3.2 | Q84: 0 | R84: 0 | S84: 0 | U84: 0 | V84: 0
B85: 61. | F85: 0 | I85: 0 | J85: 3.3 | K85: 0 | L85: ks. | O85: 3.3 | P85: 3.3 | Q85: 0 | R85: 0 | S85: 0 | U85: 0 | V85: 0
B86: 62. | F86: 0 | I86: 0 | J86: 3.4 | K86: 0 | L86: ks. | O86: 3.32 | P86: 3.4 | Q86: 0 | R86: 0 | S86: 0 | U86: 0 | V86: 0
B87: 63. | F87: 0 | I87: 0 | J87: 3.6 | K87: 0 | L87: ks. | O87: 2.95 | P87: 3.6 | Q87: 0 | R87: 0 | S87: 0 | U87: 0 | V87: 0
B88: 64. | F88: 0 | I88: 0 | J88: 3.3 | K88: 0 | L88: ks. | O88: 3.04 | P88: 3.3 | Q88: 0 | R88: 0 | S88: 0 | U88: 0 | V88: 0
B89: 65. | F89: 0 | I89: 0 | J89: 3.2 | K89: 0 | L89: ks. | O89: 3.04 | P89: 3.2 | Q89: 0 | R89: 0 | S89: 0 | U89: 0 | V89: 0
B90: 66. | F90: 0 | I90: 0 | J90: 3.1 | K90: 0 | L90: ks. | O90: 2.94 | P90: 3.1 | Q90: 0 | R90: 0 | S90: 0 | U90: 0 | V90: 0
B91: 67. | F91: 0 | I91: 0 | J91: 3.2 | K91: 0 | L91: ks. | O91: 3.04 | P91: 3.2 | Q91: 0 | R91: 0 | S91: 0 | U91: 0 | V91: 0
B92: 68. | F92: 0 | I92: 0 | J92: 3.1 | K92: 0 | L92: ks. | P92: 3.1 | Q92: 0 | R92: 0 | S92: 0 | U92: 0 | V92: 0
B93: 69. | F93: 0 | I93: 0 | J93: 3.3 | K93: 0 | L93: ks. | P93: 3.3 | Q93: 0 | R93: 0 | S93: 0 | U93: 0 | V93: 0
B94: 70. | F94: 0 | I94: 0 | K94: 0 | P94: 0 | Q94: 0 | R94: 0 | S94: 0 | U94: 0 | V94: 0
B95: 71. | F95: 0 | I95: 0 | K95: 0 | P95: 0 | Q95: 0 | R95: 0 | S95: 0 | U95: 0 | V95: 0
B96: 72. | F96: 0 | I96: 0 | J96: 0.2 | K96: 0 | L96: ks. | O96: 0.089 | P96: 0.2 | Q96: 0 | R96: 0 | S96: 0 | U96: 0 | V96: 0
B97: 73. | F97: 0 | I97: 0 | J97: 0.5 | K97: 0 | L97: ks. | O97: 0.17 | P97: 0.5 | Q97: 0 | R97: 0 | S97: 0 | U97: 0 | V97: 0
B98: 74. | F98: 0 | I98: 0 | J98: 0.1 | K98: 0 | L98: ks. | O98: 0.04 | P98: 0.1 | Q98: 0 | R98: 0 | S98: 0 | U98: 0 | V98: 0
B99: 75. | F99: 0 | I99: 0 | K99: 0 | P99: 0 | Q99: 0 | R99: 0 | S99: 0 | U99: 0 | V99: 0
B100: 76. | F100: 0 | I100: 0 | K100: 0 | P100: 0 | Q100: 0 | R100: 0 | S100: 0 | U100: 0 | V100: 0
B101: 77. | F101: 0 | I101: 0 | K101: 0 | P101: 0 | Q101: 0 | R101: 0 | S101: 0 | U101: 0 | V101: 0
D103: =SUM(D61:D101) -> 0 | G103: =SUM(G61:G101) -> 0 | J103: Celkom : | K103: =SUM(K61:K101) -> 0 | P103: Celkom: | Q103: =SUM(Q61:Q101) -> 0 | R103: =SUM(R61:R101) -> 0 | S103: =SUM(S61:S101) -> 0 | U103: Za tovar: | V103: =SUM(V61:V101) -> 0
C107: Strana 3: | O107: Strana 3:
B108: P.Č. | C108: Názov tovaru | D108: Poč. stav | E108: Denný príjem | F108: Spolu | G108: Zostatok v sklade | I108: Denný predaj | J108: Cena € | K108: Suma celkom € | O108: Nákupná cena | P108: Predajná cena | Q108: Tržba | R108: Zisk | S108: Zisk po zdanení | U108: Zostatok v krčme | V108: Suma tovaru
B110: 78. | F110: =D110+E110 -> 0 | I110: =D110+E110-G110 -> 0 | J110: 1.2 | K110: =I110*J110 -> 0 | L110: ks. | O110: 0.73 | P110: =J110 -> 1.2 | Q110: =I110*J110 -> 0 | R110: =(P110-O110)*I110 -> 0 | S110: =R110*0.8 -> 0 | U110: =G110 -> 0 | V110: =U110*O110 -> 0
B111: 79. | F111: =D111+E111 -> 0 | I111: =D111+E111-G111 -> 0 | J111: 0.6 | K111: =I111*J111 -> 0 | L111: ks. | O111: 0.29 | P111: =J111 -> 0.6 | Q111: =I111*J111 -> 0 | R111: =(P111-O111)*I111 -> 0 | S111: =R111*0.8 -> 0 | U111: =G111 -> 0 | V111: =U111*O111 -> 0
B112: 80. | F112: 0 | I112: 0 | J112: 0.6 | K112: 0 | L112: ks. | O112: 0.28 | P112: 0.6 | Q112: 0 | R112: =(P112-O112)*I112 -> 0 | S112: 0 | U112: 0 | V112: 0
B113: 81. | F113: 0 | I113: 0 | J113: 1.5 | K113: 0 | L113: ks. | O113: 0.9 | P113: 1.5 | Q113: 0 | R113: 0 | S113: 0 | U113: 0 | V113: 0
B114: 82. | F114: 0 | I114: 0 | J114: 0.6 | K114: 0 | L114: ks. | O114: 0.32 | P114: 0.6 | Q114: 0 | R114: 0 | S114: 0 | U114: 0 | V114: 0
B115: 83. | F115: 0 | I115: 0 | J115: 0.6 | K115: 0 | L115: ks. | O115: 0.26 | P115: 0.6 | Q115: 0 | R115: 0 | S115: 0 | U115: 0 | V115: 0
B116: 84. | F116: 0 | I116: 0 | J116: 0.6 | K116: 0 | L116: ks. | O116: 0.4 | P116: 0.6 | Q116: 0 | R116: 0 | S116: 0 | U116: 0 | V116: 0
B117: 85. | F117: 0 | I117: 0 | K117: 0 | L117: ks. | P117: 0 | Q117: 0 | R117: 0 | S117: 0 | U117: 0 | V117: 0
B118: 86. | F118: 0 | I118: 0 | J118: 0.6 | K118: 0 | L118: ks. | O118: 0.33 | P118: 0.6 | Q118: 0 | R118: 0 | S118: 0 | U118: 0 | V118: 0
B119: 87. | F119: 0 | I119: 0 | J119: 0.3 | K119: 0 | L119: ks. | O119: 0.1 | P119: 0.3 | Q119: 0 | R119: 0 | S119: 0 | U119: 0 | V119: 0
B120: 88. | F120: 0 | I120: 0 | J120: 0.8 | K120: 0 | L120: ks. | O120: 0.5 | P120: 0.8 | Q120: 0 | R120: 0 | S120: 0 | U120: 0 | V120: 0
B121: 89. | F121: 0 | I121: 0 | J121: 2.6 | K121: 0 | L121: ks. | O121: 1.62 | P121: 2.6 | Q121: 0 | R121: 0 | S121: 0 | U121: 0 | V121: 0
B122: 90. | F122: 0 | I122: 0 | J122: 1.5 | K122: 0 | L122: ks. | O122: 0.73 | P122: 1.5 | Q122: 0 | R122: 0 | S122: 0 | U122: 0 | V122: 0
B123: 91. | F123: 0 | I123: 0 | J123: 0.5 | K123: 0 | L123: ks. | O123: 0.24 | P123: 0.5 | Q123: 0 | R123: 0 | S123: 0 | U123: 0 | V123: 0
B124: 92. | F124: 0 | I124: 0 | J124: 0.8 | K124: 0 | L124: ks. | O124: 0.33 | P124: 0.8 | Q124: 0 | R124: 0 | S124: 0 | U124: 0 | V124: 0
B125: 93. | F125: 0 | I125: 0 | J125: 0.6 | K125: 0 | L125: ks. | O125: 0.3 | P125: 0.6 | Q125: 0 | R125: 0 | S125: 0 | U125: 0 | V125: 0
B126: 94. | F126: 0 | I126: 0 | J126: 0.1 | K126: 0 | L126: ks. | O126: 0.052 | P126: 0.1 | Q126: 0 | R126: 0 | S126: 0 | U126: 0 | V126: 0
B127: 95. | F127: 0 | I127: 0 | J127: 0.6 | K127: 0 | L127: ks. | O127: 0.37 | P127: 0.6 | Q127: 0 | R127: 0 | S127: 0 | U127: 0 | V127: 0
B128: 96. | F128: 0 | I128: 0 | J128: 0.9 | K128: 0 | L128: ks. | O128: 0.54 | P128: 0.9 | Q128: 0 | R128: 0 | S128: 0 | U128: 0 | V128: 0
B129: 97. | F129: 0 | I129: 0 | J129: 0.7 | K129: 0 | L129: ks. | O129: 0.3 | P129: 0.7 | Q129: 0 | R129: 0 | S129: 0 | U129: 0 | V129: 0
B130: 98. | F130: 0 | I130: 0 | J130: 0.5 | K130: 0 | L130: ks. | O130: 0.27 | P130: 0.5 | Q130: 0 | R130: 0 | S130: 0 | U130: 0 | V130: 0
B131: 99. | F131: 0 | I131: 0 | J131: 0.6 | K131: 0 | L131: ks. | O131: 0.32 | P131: 0.6 | Q131: 0 | R131: 0 | S131: 0 | U131: 0 | V131: 0
B132: 100. | F132: 0 | I132: 0 | K132: 0 | P132: 0 | Q132: 0 | R132: 0 | S132: 0 | U132: 0 | V132: 0
B133: 101. | F133: 0 | I133: 0 | K133: 0 | P133: 0 | Q133: 0 | R133: 0 | S133: 0 | U133: 0 | V133: 0
B134: 102. | F134: 0 | I134: 0 | K134: 0 | P134: 0 | Q134: 0 | R134: 0 | S134: 0 | U134: 0 | V134: 0
B135: 103. | F135: 0 | I135: 0 | K135: 0 | P135: 0 | Q135: 0 | R135: 0 | S135: 0 | U135: 0 | V135: 0
U136: 0 | V136: 0
D137: =SUM(D110:D135) -> 0 | G137: =SUM(G110:G135) -> 0 | J137: Celkom: | K137: =SUM(K110:K135) -> 0 | P137: Celkom: | Q137: =SUM(Q110:Q135) -> 0 | R137: =SUM(R110:R135) -> 0 | S137: =SUM(S110:S135) -> 0 | U137: Za tovar: | V137: =SUM(V110:V135) -> 0
Q139: Tržba | R139: Zisk | S139: Zisk po zdanený
D141: Stávková: | I141: Strana 1: | J141: =K53 -> 471.7 | P141: Strana 1 | Q141: =Q53 -> 471.7 | R141: =R53 -> 217.14 | S141: =S53 -> 173.712 | U141: Strana 1: | V141: =V53 -> 422.68
D142: Refil: | I142: Strana 2: | J142: =K103 -> 0 | P142: Strana 2 | Q142: =Q103 -> 0 | R142: =R103 -> 0 | S142: =S103 -> 0 | U142: Strana 2: | V142: =V103 -> 0
D143: Výdavky: | I143: Strana 3: | J143: =K137 -> 0 | P143: Strana 3 | Q143: =Q137 -> 0 | R143: =R137 -> 0 | S143: =S137 -> 0 | U143: Strana 3: | V143: =V137 -> 0
E145: Spolu: | F145: =SUM(F141:F143) -> 0 | I145: Spolu: | J145: =SUM(J141:J143) -> 471.7 | P145: Spolu: | Q145: =SUM(Q141:Q143) -> 471.7 | R145: =SUM(R141:R143) -> 217.14 | S145: =SUM(S141:S143) -> 173.712 | U145: Spolu: | V145: =SUM(V141:V143) -> 422.68
P147: Spolu: | Q147: =Q145-F145 -> 471.7
I148: Spolu : | J148: =J145-F145 -> 471.7
C150: Zostatok hotovosť:
C152: rozdiel: | D152: =D150-J148 -> -471.7

Sheet 2
C1: Vyučtovanie výčapu 2018 | O1: Denný sumár
G2: Meno: | N2: Juniorka | O2: Meno: | P2: =I2 -> 0
G3: Dátum: | J3: /2018 | N3: Šipulová | O3: Dátum: | P3: =I3 -> 0 | Q3: /2018
C13: Strana 1: | O13: Strana 1:
B14: P.Č. | C14: Názov tovaru | D14: Poč. stav | E14: Denný príjem | F14: Spolu | G14: Zostatok v sklade | I14: Denný predaj | J14: Cena € | K14: Suma celkom € | L14: J.M | O14: Nákupná cena | P14: Predajná cena | Q14: Tržba | R14: Zisk | S14: Zisk po zdanení | U14: Zostatok v krčme | V14: Suma tovaru
B16: 1. | C16: aaa | D16: 9 | F16: =D16+E16 -> 9 | G16: 8 | I16: =D16+E16-G16 -> 1 | J16: 2 | K16: =I16*J16 -> 2 | L16: l. | O16: 1.032 | P16: =J16 -> 2 | Q16: =I16*J16 -> 2 | R16: =(P16-O16)*I16 -> 0.968 | S16: =R16*0.8 -> 0.7744 | U16: =G16 -> 8 | V16: =U16*O16 -> 8.256
B17: 2. | C17: sss | D17: 14 | F17: 14 | G17: 10 | I17: 4 | J17: 2 | K17: =I17*J17 -> 8 | L17: l. | O17: 0.493 | P17: =J17 -> 2 | Q17: =I17*J17 -> 8 | R17: =(P17-O17)*I17 -> 6.028 | S17: =R17*0.8 -> 4.8224 | U17: =G17 -> 10 | V17: =U17*O17 -> 4.93
B18: 3. | C18: dddd | D18: 5 | F18: 5 | G18: 4 | I18: 1 | J18: 2.8 | K18: 2.8 | L18: l. | O18: 1.52 | P18: 2.8 | Q18: 2.8 | R18: =(P18-O18)*I18 -> 1.28 | S18: 1.024 | U18: 4 | V18: 6.08
B19: 4. | F19: 0 | I19: 0 | K19: 0 | P19: 0 | Q19: 0 | R19: 0 | S19: 0 | U19: 0 | V19: 0
B20: 5. | C20: ref | D20: 19 | F20: 19 | G20: 17 | I20: 2 | J20: 0.8 | K20: 1.6 | L20: ks. | O20: 0.41 | P20: 0.8 | Q20: 1.6 | R20: 0.78 | S20: 0.624 | U20: 17 | V20: 6.97
B21: 6. | C21: erfer | D21: 40 | F21: 40 | G21: 35 | I21: 5 | J21: 0.9 | K21: 4.5 | L21: ks. | O21: 0.47 | P21: 0.9 | Q21: 4.5 | R21: 2.15 | S21: 1.72 | U21: 35 | V21: 16.45
B22: 7. | C22: erferf | D22: 458 | F22: 458 | G22: 450 | I22: 8 | J22: 1.2 | K22: 9.6 | L22: ks. | O22: 0.64 | P22: 1.2 | Q22: 9.6 | R22: 4.48 | S22: 3.584 | U22: 450 | V22: 288
B23: 8. | C23: erferf | D23: 40 | F23: 40 | G23: 39 | I23: 1 | J23: 0.9 | K23: 0.9 | L23: ks. | O23: 0.49 | P23: 0.9 | Q23: 0.9 | R23: 0.41 | S23: 0.328 | U23: 39 | V23: 19.11
B24: 9. | C24: ergfer | D24: 18 | F24: 18 | G24: 17 | I24: 1 | J24: 1.3 | K24: 1.3 | L24: ks. | O24: 0.93 | P24: 1.3 | Q24: 1.3 | R24: 0.37 | S24: 0.296 | U24: 17 | V24: 15.81
B25: 10. | C25: rgerg | D25: 50 | F25: 50 | G25: 48 | I25: 2 | J25: 1 | K25: 2 | L25: ks. | O25: 0.77 | P25: 1 | Q25: 2 | R25: 0.46 | S25: 0.368 | U25: 48 | V25: 36.96
B26: 11. | C26: hzh | D26: 2 | F26: 2 | G26: 1 | I26: 1 | J26: 0.9 | K26: 0.9 | L26: ks. | O26: 0.49 | P26: 0.9 | Q26: 0.9 | R26: 0.41 | S26: 0.328 | U26: 1 | V26: 0.49
B27: 12. | C27: zthtz | D27: 8 | F27: 8 | I27: 8 | J27: 1 | K27: 8 | L27: ks. | O27: 0.42 | P27: 1 | Q27: 8 | R27: 4.64 | S27: 3.712 | U27: 0 | V27: 0
B28: 13. | F28: 0 | I28: 0 | J28: 1.2 | K28: 0 | L28: ks. | O28: 0.75 | P28: 1.2 | Q28: 0 | R28: 0 | S28: 0 | U28: 0 | V28: 0
B29: 14. | F29: 0 | I29: 0 | K29: 0 | P29: 0 | Q29: 0 | R29: 0 | S29: 0 | U29: 0 | V29: 0
B30: 15. | F30: 0 | I30: 0 | J30: 3 | K30: 0 | L30: l. | O30: 1.29 | P30: 3 | Q30: 0 | R30: 0 | S30: 0 | U30: 0 | V30: 0
B31: 16. | F31: 0 | I31: 0 | J31: 3 | K31: 0 | L31: l. | O31: 1.29 | P31: 3 | Q31: 0 | R31: 0 | S31: 0 | U31: 0 | V31: 0
B32: 17. | F32: 0 | I32: 0 | K32: 0 | P32: 0 | Q32: 0 | R32: 0 | S32: 0 | U32: 0 | V32: 0
B33: 18. | F33: 0 | I33: 0 | J33: 12 | K33: 0 | L33: l. | O33: 6.35 | P33: 12 | Q33: 0 | R33: 0 | S33: 0 | U33: 0 | V33: 0
B34: 19. | F34: 0 | I34: 0 | J34: 12 | K34: 0 | L34: l. | O34: 6.35 | P34: 12 | Q34: 0 | R34: 0 | S34: 0 | U34: 0 | V34: 0
B35: 20. | F35: 0 | I35: 0 | J35: 14 | K35: 0 | L35: l. | O35: 5.83 | P35: 14 | Q35: 0 | R35: 0 | S35: 0 | U35: 0 | V35: 0
B36: 21. | F36: 0 | I36: 0 | J36: 12 | K36: 0 | L36: l. | O36: 5.78 | P36: 12 | Q36: 0 | R36: 0 | S36: 0 | U36: 0 | V36: 0
B37: 22. | F37: 0 | I37: 0 | J37: 14 | K37: 0 | L37: l. | O37: 7.1 | P37: 14 | Q37: 0 | R37: 0 | S37: 0 | U37: 0 | V37: 0
B38: 23. | F38: 0 | I38: 0 | J38: 14 | K38: 0 | L38: l. | O38: 5.74 | P38: 14 | Q38: 0 | R38: 0 | S38: 0 | U38: 0 | V38: 0
B39: 24. | F39: 0 | I39: 0 | J39: 12 | K39: 0 | L39: l. | O39: 6.17 | P39: 12 | Q39: 0 | R39: 0 | S39: 0 | U39: 0 | V39: 0
B40: 25. | F40: 0 | I40: 0 | J40: 12 | K40: 0 | L40: l. | O40: 4.92 | P40: 12 | Q40: 0 | R40: 0 | S40: 0 | U40: 0 | V40: 0
B41: 26. | F41: 0 | I41: 0 | J41: 14 | K41: 0 | L41: l. | O41: 4.38 | P41: 14 | Q41: 0 | R41: 0 | S41: 0 | U41: 0 | V41: 0
B42: 27. | F42: 0 | I42: 0 | J42: 20 | K42: 0 | L42: l. | O42: 10.8 | P42: 20 | Q42: 0 | R42: 0 | S42: 0 | U42: 0 | V42: 0
B43: 28. | F43: 0 | I43: 0 | J43: 20 | K43: 0 | L43: l. | O43: 9.69 | P43: 20 | Q43: 0 | R43: 0 | S43: 0 | U43: 0 | V43: 0
B44: 29. | F44: 0 | I44: 0 | J44: 14 | K44: 0 | L44: l. | O44: 7.15 | P44: 14 | Q44: 0 | R44: 0 | S44: 0 | U44: 0 | V44: 0
B45: 30. | F45: 0 | I45: 0 | J45: 24 | K45: 0 | L45: l. | O45: 16.91 | P45: 24 | Q45: 0 | R45: 0 | S45: 0 | U45: 0 | V45: 0
B46: 31. | F46: 0 | I46: 0 | J46: 20 | K46: 0 | L46: l. | O46: 5.998 | P46: 20 | Q46: 0 | R46: 0 | S46: 0 | U46: 0 | V46: 0
B47: 32. | F47: 0 | I47: 0 | J47: 20 | K47: 0 | L47: l. | O47: 9.69 | P47: 20 | Q47: 0 | R47: 0 | S47: 0 | U47: 0 | V47: 0
B48: 33. | F48: 0 | I48: 0 | J48: 12 | K48: 0 | L48: l. | O48: 5.08 | P48: 12 | Q48: 0 | R48: 0 | S48: 0 | U48: 0 | V48: 0
B49: 34. | F49: 0 | I49: 0 | J49: 18 | K49: 0 | L49: l. | O49: 4.9 | P49: 18 | Q49: 0 | R49: 0 | S49: 0 | U49: 0 | V49: 0
B50: 35. | F50: 0 | I50: 0 | J50: 24 | K50: 0 | L50: l. | O50: 11.45 | P50: 24 | Q50: 0 | R50: 0 | S50: 0 | U50: 0 | V50: 0
B51: 36. | F51: 0 | I51: 0 | K51: 0 | P51: 0 | Q51: 0 | R51: 0 | S51: 0 | U51: 0 | V51: 0
P52: 0
D53: =SUM(D16:D51) -> 663 | G53: =SUM(G16:G51) -> 629 | J53: Celkom: | K53: =SUM(K16:K51) -> 41.6 | P53: Celkom: | Q53: =SUM(Q16:Q51) -> 41.6 | R53: =SUM(R16:R51) -> 21.976 | S53: =SUM(S16:S51) -> 17.5808 | U53: Za tovar: | V53: =SUM(V16:V51) -> 403.056
C58: Strana 2: | O58: Strana 2:
B59: P.Č. | C59: Názov tovaru | D59: Poč. stav | E59: Denný príjem | F59: Spolu | G59: Zostatok v sklade | I59: Denný predaj | J59: Cena € | K59: Suma celkom € | O59: Nákupná cena | P59: Predajná cena | Q59: Tržba | R59: Zisk | S59: Zisk po zdanení | U59: Zostatok v krčme | V59: Suma tovaru
B61: 37. | F61: =D61+E61 -> 0 | I61: =D61+E61-G61 -> 0 | J61: 1.1 | K61: =I61*J61 -> 0 | L61: ks. | O61: 0.78 | P61: =J61 -> 1.1 | Q61: =I61*J61 -> 0 | R61: =(P61-O61)*I61 -> 0 | S61: =R61*0.8 -> 0 | U61: =G61 -> 0 | V61: =U61*O61 -> 0
B62: 38. | F62: =D62+E62 -> 0 | I62: =D62+E62-G62 -> 0 | J62: 2 | K62: =I62*J62 -> 0 | L62: ks. | O62: 0.726 | P62: =J62 -> 2 | Q62: =I62*J62 -> 0 | R62: =(P62-O62)*I62 -> 0 | S62: =R62*0.8 -> 0 | U62: =G62 -> 0 | V62: =U62*O62 -> 0
B63: 39. | F63: 0 | I63: 0 | J63: 0.9 | K63: 0 | L63: ks. | O63: 0.528 | P63: 0.9 | Q63: 0 | R63: =(P63-O63)*I63 -> 0 | S63: 0 | U63: 0 | V63: 0
B64: 40. | F64: 0 | I64: 0 | J64: 1.1 | K64: 0 | L64: ks. | O64: 0.49 | P64: 1.1 | Q64: 0 | R64: 0 | S64: 0 | U64: 0 | V64: 0
B65: 41. | F65: 0 | I65: 0 | J65: 0.5 | K65: 0 | L65: ks. | O65: 0.2 | P65: 0.5 | Q65: 0 | R65: 0 | S65: 0 | U65: 0 | V65: 0
B66: 42. | F66: 0 | I66: 0 | J66: 1.8 | K66: 0 | L66: ks. | O66: 0.25 | P66: 1.8 | Q66: 0 | R66: 0 | S66: 0 | U66: 0 | V66: 0
B67: 43. | F67: 0 | I67: 0 | J67: 0.5 | K67: 0 | L67: ks. | O67: 0.11 | P67: 0.5 | Q67: 0 | R67: 0 | S67: 0 | U67: 0 | V67: 0
B68: 44. | D68: 0 | F68: 0 | G68: 0 | I68: 0 | J68: 1.5 | K68: 0 | L68: l. | O68: 0.23 | P68: 1.5 | Q68: 0 | R68: 0 | S68: 0 | U68: 0 | V68: 0
B69: 45. | F69: 0 | I69: 0 | J69: 1 | K69: 0 | L69: ks. | O69: 0.46 | P69: 1 | Q69: 0 | R69: 0 | S69: 0 | U69: 0 | V69: 0
B70: 46. | F70: 0 | I70: 0 | J70: 3 | K70: 0 | L70: ks. | O70: 1.188 | P70: 3 | Q70: 0 | R70: 0 | S70: 0 | U70: 0 | V70: 0
B71: 47. | F71: 0 | I71: 0 | J71: 1.1 | K71: 0 | L71: l. | O71: 0.33 | P71: 1.1 | Q71: 0 | R71: 0 | S71: 0 | U71: 0 | V71: 0
B72: 48. | F72: 0 | I72: 0 | J72: 0.8 | K72: 0 | L72: ks. | O72: 0.32 | P72: 0.8 | Q72: 0 | R72: 0 | S72: 0 | U72: 0 | V72: 0
B73: 49. | F73: 0 | I73: 0 | J73: 1.1 | K73: 0 | L73: ks. | O73: 0.624 | P73: 1.1 | Q73: 0 | R73: 0 | S73: 0 | U73: 0 | V73: 0
B74: 50. | F74: 0 | I74: 0 | J74: 1.1 | K74: 0 | L74: ks. | O74: 0.504 | P74: 1.1 | Q74: 0 | R74: 0 | S74: 0 | U74: 0 | V74: 0
B75: 51. | F75: 0 | I75: 0 | J75: 1.2 | K75: 0 | L75: ks. | O75: 0.64 | P75: 1.2 | Q75: 0 | R75: 0 | S75: 0 | U75: 0 | V75: 0
B76: 52. | F76: 0 | I76: 0 | K76: 0 | P76: 0 | Q76: 0 | R76: 0 | S76: 0 | U76: 0 | V76: 0
B77: 53. | F77: 0 | I77: =(D77+E77-G77)/7 -> 0 | J77: 0.5 | K77: 0 | L77: gr. | O77: 0.034 | P77: 0.5 | Q77: =K77 -> 0 | R77: 0 | S77: 0 | U77: 0 | V77: 0
B78: 54. | F78: 0 | I78: 0 | J78: 0.5 | K78: 0 | L78: ks. | O78: 0.14 | P78: 0.5 | Q78: 0 | R78: 0 | S78: 0 | U78: 0 | V78: 0
B79: 55. | F79: 0 | I79: 0 | J79: 0.5 | K79: =I79*J79 -> 0 | L79: ks. | O79: 0.058 | P79: 0.5 | Q79: =I79*J79 -> 0 | R79: 0 | S79: 0 | U79: 0 | V79: =U79*O80 -> 0
B80: 56. | F80: 0 | I80: 0 | J80: 0.1 | K80: =I80*J80 -> 0 | L80: ks. | O80: 0.036 | P80: 0.1 | Q80: =I80*J80 -> 0 | R80: 0 | S80: 0 | U80: 0 | V80: =U80*O81 -> 0
B81: 57. | F81: 0 | I81: 0 | J81: 0.05 | K81: =I81*J81 -> 0 | L81: ks. | O81: 0.08 | P81: 0.05 | Q81: =I81*J81 -> 0 | R81: 0 | S81: 0 | U81: 0 | V81: =U81*O82 -> 0
B82: 58. | F82: 0 | I82: 0 | K82: =I82*J82 -> 0 | P82: 0 | Q82: =I82*J82 -> 0 | R82: 0 | S82: 0 | U82: 0 | V82: =U82*O83 -> 0
B83: 59. | F83: 0 | I83: 0 | K83: 0 | P83: 0 | Q83: 0 | R83: 0 | S83: 0 | U83: 0 | V83: 0
B84: 60. | F84: 0 | I84: 0 | J84: 3.2 | K84: 0 | L84: ks. | O84: 3.04 | P84: 3.2 | Q84: 0 | R84: 0 | S84: 0 | U84: 0 | V84: 0
B85: 61. | F85: 0 | I85: 0 | J85: 3.3 | K85: 0 | L85: ks. | O85: 3.3 | P85: 3.3 | Q85: 0 | R85: 0 | S85: 0 | U85: 0 | V85: 0
B86: 62. | F86: 0 | I86: 0 | J86: 3.4 | K86: 0 | L86: ks. | O86: 3.32 | P86: 3.4 | Q86: 0 | R86: 0 | S86: 0 | U86: 0 | V86: 0
B87: 63. | F87: 0 | I87: 0 | J87: 3.6 | K87: 0 | L87: ks. | O87: 2.95 | P87: 3.6 | Q87: 0 | R87: 0 | S87: 0 | U87: 0 | V87: 0
B88: 64. | F88: 0 | I88: 0 | J88: 3.3 | K88: 0 | L88: ks. | O88: 3.04 | P88: 3.3 | Q88: 0 | R88: 0 | S88: 0 | U88: 0 | V88: 0
B89: 65. | F89: 0 | I89: 0 | J89: 3.2 | K89: 0 | L89: ks. | O89: 3.04 | P89: 3.2 | Q89: 0 | R89: 0 | S89: 0 | U89: 0 | V89: 0
B90: 66. | F90: 0 | I90: 0 | J90: 3.1 | K90: 0 | L90: ks. | O90: 2.94 | P90: 3.1 | Q90: 0 | R90: 0 | S90: 0 | U90: 0 | V90: 0
B91: 67. | F91: 0 | I91: 0 | J91: 3.2 | K91: 0 | L91: ks. | O91: 3.04 | P91: 3.2 | Q91: 0 | R91: 0 | S91: 0 | U91: 0 | V91: 0
B92: 68. | F92: 0 | I92: 0 | J92: 3.1 | K92: 0 | L92: ks. | P92: 3.1 | Q92: 0 | R92: 0 | S92: 0 | U92: 0 | V92: 0
B93: 69. | F93: 0 | I93: 0 | J93: 3.3 | K93: 0 | L93: ks. | P93: 3.3 | Q93: 0 | R93: 0 | S93: 0 | U93: 0 | V93: 0
B94: 70. | F94: 0 | I94: 0 | K94: 0 | P94: 0 | Q94: 0 | R94: 0 | S94: 0 | U94: 0 | V94: 0
B95: 71. | F95: 0 | I95: 0 | K95: 0 | P95: 0 | Q95: 0 | R95: 0 | S95: 0 | U95: 0 | V95: 0
B96: 72. | F96: 0 | I96: 0 | J96: 0.2 | K96: 0 | L96: ks. | O96: 0.089 | P96: 0.2 | Q96: 0 | R96: 0 | S96: 0 | U96: 0 | V96: 0
B97: 73. | F97: 0 | I97: 0 | J97: 0.5 | K97: 0 | L97: ks. | O97: 0.17 | P97: 0.5 | Q97: 0 | R97: 0 | S97: 0 | U97: 0 | V97: 0
B98: 74. | F98: 0 | I98: 0 | J98: 0.1 | K98: 0 | L98: ks. | O98: 0.04 | P98: 0.1 | Q98: 0 | R98: 0 | S98: 0 | U98: 0 | V98: 0
B99: 75. | F99: 0 | I99: 0 | K99: 0 | P99: 0 | Q99: 0 | R99: 0 | S99: 0 | U99: 0 | V99: 0
B100: 76. | F100: 0 | I100: 0 | K100: 0 | P100: 0 | Q100: 0 | R100: 0 | S100: 0 | U100: 0 | V100: 0
B101: 77. | F101: 0 | I101: 0 | K101: 0 | P101: 0 | Q101: 0 | R101: 0 | S101: 0 | U101: 0 | V101: 0
D103: =SUM(D61:D101) -> 0 | G103: =SUM(G61:G101) -> 0 | J103: Celkom : | K103: =SUM(K61:K101) -> 0 | P103: Celkom: | Q103: =SUM(Q61:Q101) -> 0 | R103: =SUM(R61:R101) -> 0 | S103: =SUM(S61:S101) -> 0 | U103: Za tovar: | V103: =SUM(V61:V101) -> 0
C107: Strana 3: | O107: Strana 3:
B108: P.Č. | C108: Názov tovaru | D108: Poč. stav | E108: Denný príjem | F108: Spolu | G108: Zostatok v sklade | I108: Denný predaj | J108: Cena € | K108: Suma celkom € | O108: Nákupná cena | P108: Predajná cena | Q108: Tržba | R108: Zisk | S108: Zisk po zdanení | U108: Zostatok v krčme | V108: Suma tovaru
B110: 78. | F110: =D110+E110 -> 0 | I110: =D110+E110-G110 -> 0 | J110: 1.2 | K110: =I110*J110 -> 0 | L110: ks. | O110: 0.73 | P110: =J110 -> 1.2 | Q110: =I110*J110 -> 0 | R110: =(P110-O110)*I110 -> 0 | S110: =R110*0.8 -> 0 | U110: =G110 -> 0 | V110: =U110*O110 -> 0
B111: 79. | F111: =D111+E111 -> 0 | I111: =D111+E111-G111 -> 0 | J111: 0.6 | K111: =I111*J111 -> 0 | L111: ks. | O111: 0.29 | P111: =J111 -> 0.6 | Q111: =I111*J111 -> 0 | R111: =(P111-O111)*I111 -> 0 | S111: =R111*0.8 -> 0 | U111: =G111 -> 0 | V111: =U111*O111 -> 0
B112: 80. | F112: 0 | I112: 0 | J112: 0.6 | K112: 0 | L112: ks. | O112: 0.28 | P112: 0.6 | Q112: 0 | R112: =(P112-O112)*I112 -> 0 | S112: 0 | U112: 0 | V112: 0
B113: 81. | F113: 0 | I113: 0 | J113: 1.5 | K113: 0 | L113: ks. | O113: 0.9 | P113: 1.5 | Q113: 0 | R113: 0 | S113: 0 | U113: 0 | V113: 0
B114: 82. | F114: 0 | I114: 0 | J114: 0.6 | K114: 0 | L114: ks. | O114: 0.32 | P114: 0.6 | Q114: 0 | R114: 0 | S114: 0 | U114: 0 | V114: 0
B115: 83. | F115: 0 | I115: 0 | J115: 0.6 | K115: 0 | L115: ks. | O115: 0.26 | P115: 0.6 | Q115: 0 | R115: 0 | S115: 0 | U115: 0 | V115: 0
B116: 84. | F116: 0 | I116: 0 | J116: 0.6 | K116: 0 | L116: ks. | O116: 0.4 | P116: 0.6 | Q116: 0 | R116: 0 | S116: 0 | U116: 0 | V116: 0
B117: 85. | F117: 0 | I117: 0 | K117: 0 | L117: ks. | P117: 0 | Q117: 0 | R117: 0 | S117: 0 | U117: 0 | V117: 0
B118: 86. | F118: 0 | I118: 0 | J118: 0.6 | K118: 0 | L118: ks. | O118: 0.33 | P118: 0.6 | Q118: 0 | R118: 0 | S118: 0 | U118: 0 | V118: 0
B119: 87. | F119: 0 | I119: 0 | J119: 0.3 | K119: 0 | L119: ks. | O119: 0.1 | P119: 0.3 | Q119: 0 | R119: 0 | S119: 0 | U119: 0 | V119: 0
B120: 88. | F120: 0 | I120: 0 | J120: 0.8 | K120: 0 | L120: ks. | O120: 0.5 | P120: 0.8 | Q120: 0 | R120: 0 | S120: 0 | U120: 0 | V120: 0
B121: 89. | F121: 0 | I121: 0 | J121: 2.6 | K121: 0 | L121: ks. | O121: 1.62 | P121: 2.6 | Q121: 0 | R121: 0 | S121: 0 | U121: 0 | V121: 0
B122: 90. | F122: 0 | I122: 0 | J122: 1.5 | K122: 0 | L122: ks. | O122: 0.73 | P122: 1.5 | Q122: 0 | R122: 0 | S122: 0 | U122: 0 | V122: 0
B123: 91. | F123: 0 | I123: 0 | J123: 0.5 | K123: 0 | L123: ks. | O123: 0.24 | P123: 0.5 | Q123: 0 | R123: 0 | S123: 0 | U123: 0 | V123: 0
B124: 92. | F124: 0 | I124: 0 | J124: 0.8 | K124: 0 | L124: ks. | O124: 0.33 | P124: 0.8 | Q124: 0 | R124: 0 | S124: 0 | U124: 0 | V124: 0
B125: 93. | F125: 0 | I125: 0 | J125: 0.6 | K125: 0 | L125: ks. | O125: 0.3 | P125: 0.6 | Q125: 0 | R125: 0 | S125: 0 | U125: 0 | V125: 0
B126: 94. | F126: 0 | I126: 0 | J126: 0.1 | K126: 0 | L126: ks. | O126: 0.052 | P126: 0.1 | Q126: 0 | R126: 0 | S126: 0 | U126: 0 | V126: 0
B127: 95. | F127: 0 | I127: 0 | J127: 0.6 | K127: 0 | L127: ks. | O127: 0.37 | P127: 0.6 | Q127: 0 | R127: 0 | S127: 0 | U127: 0 | V127: 0
B128: 96. | F128: 0 | I128: 0 | J128: 0.9 | K128: 0 | L128: ks. | O128: 0.54 | P128: 0.9 | Q128: 0 | R128: 0 | S128: 0 | U128: 0 | V128: 0
B129: 97. | F129: 0 | I129: 0 | J129: 0.7 | K129: 0 | L129: ks. | O129: 0.3 | P129: 0.7 | Q129: 0 | R129: 0 | S129: 0 | U129: 0 | V129: 0
B130: 98. | F130: 0 | I130: 0 | J130: 0.5 | K130: 0 | L130: ks. | O130: 0.27 | P130: 0.5 | Q130: 0 | R130: 0 | S130: 0 | U130: 0 | V130: 0
B131: 99. | F131: 0 | I131: 0 | J131: 0.6 | K131: 0 | L131: ks. | O131: 0.32 | P131: 0.6 | Q131: 0 | R131: 0 | S131: 0 | U131: 0 | V131: 0
B132: 100. | F132: 0 | I132: 0 | K132: 0 | P132: 0 | Q132: 0 | R132: 0 | S132: 0 | U132: 0 | V132: 0
B133: 101. | F133: 0 | I133: 0 | K133: 0 | P133: 0 | Q133: 0 | R133: 0 | S133: 0 | U133: 0 | V133: 0
B134: 102. | F134: 0 | I134: 0 | K134: 0 | P134: 0 | Q134: 0 | R134: 0 | S134: 0 | U134: 0 | V134: 0
B135: 103. | F135: 0 | I135: 0 | K135: 0 | P135: 0 | Q135: 0 | R135: 0 | S135: 0 | U135: 0 | V135: 0
U136: 0 | V136: 0
D137: =SUM(D110:D135) -> 0 | G137: =SUM(G110:G135) -> 0 | J137: Celkom: | K137: =SUM(K110:K135) -> 0 | P137: Celkom: | Q137: =SUM(Q110:Q135) -> 0 | R137: =SUM(R110:R135) -> 0 | S137: =SUM(S110:S135) -> 0 | U137: Za tovar: | V137: =SUM(V110:V135) -> 0
Q139: Tržba | R139: Zisk | S139: Zisk po zdanený
D141: Stávková: | I141: Strana 1: | J141: =K53 -> 41.6 | P141: Strana 1 | Q141: =Q53 -> 41.6 | R141: =R53 -> 21.976 | S141: =S53 -> 17.5808 | U141: Strana 1: | V141: =V53 -> 403.056
D142: Refil: | I142: Strana 2: | J142: =K103 -> 0 | P142: Strana 2 | Q142: =Q103 -> 0 | R142: =R103 -> 0 | S142: =S103 -> 0 | U142: Strana 2: | V142: =V103 -> 0
D143: Výdavky: | I143: Strana 3: | J143: =K137 -> 0 | P143: Strana 3 | Q143: =Q137 -> 0 | R143: =R137 -> 0 | S143: =S137 -> 0 | U143: Strana 3: | V143: =V137 -> 0
E145: Spolu: | F145: =SUM(F141:F143) -> 0 | I145: Spolu: | J145: =SUM(J141:J143) -> 41.6 | P145: Spolu: | Q145: =SUM(Q141:Q143) -> 41.6 | R145: =SUM(R141:R143) -> 21.976 | S145: =SUM(S141:S143) -> 17.5808 | U145: Spolu: | V145: =SUM(V141:V143) -> 403.056
P147: Spolu: | Q147: =Q145-F145 -> 41.6
I148: Spolu : | J148: =J145-F145 -> 41.6
C150: Zostatok hotovosť:
C152: rozdiel: | D152: =D150-J148 -> -41.6
